{"text_format":"1","workbook":"xlsx","n_sheets":4,"sheets":["Доходы","Расходы","ExportParams","Источники"],"not_rendered":{"charts":0,"images":1,"macros":1,"external_links":0,"defined_names":24,"comments":0,"pivot_tables":0},"unopened":[],"bounds":{"document_bytes":16777216,"sheet_cells":100000,"rows_first":2000,"rows_last":500,"rows_between":2000,"halvings":0,"cell_chars":16384,"cell_head_chars":4096},"cells_cut":0,"cells_raw":0,"read":"whole","date_system":"1900"}

{"sheet":"Доходы","index":0,"n_rows":133,"n_cols":8,"rows_kept":133,"cut":false,"hidden":false,"merged":[[10,5,16,5],[0,0,0,3],[1,0,1,3],[3,0,3,3],[5,1,5,3],[6,1,6,3],[9,0,9,3],[10,0,16,0],[10,1,16,1],[10,2,16,2],[10,3,16,3],[10,4,16,4]]}
[null,null,null,null,null,null,null,"RESPPERSONS&=Заведующий отделом финансов=Жолудева И. &&:Исполнитель Специалист=Комбарова Н. "]
["ОТЧЕТ ОБ ИСПОЛНЕНИИ БЮДЖЕТА",null,null,null,null,"КОДЫ"]
[null,null,null,null,"  Форма по ОКУД","0503117",null,"C:\\117Y1.txt"]
["на 01 мая 2015 года",null,null,null,"                   Дата","01.05.2015",null,"01.05.2015"]
[null,null,null,null,"             по ОКПО","04032907",null,"117"]
["Наименование финансового органа:","Администрация муниципального образования \"Город Пикалево\" Бокситогорского района Ленинградской области",null,null,"    Глава по БК","001",null,"5"]
["Наименование публично-правового образования:","Бюджет муниципального образования \"Город Пикалево\" Бокситогорского муниципального района Ленинградской области",null,null,"по ОКТМО","41603102"]
["Периодичность: годовая"]
["Единица измерения: руб.",null,null,null,"             по ОКЕИ","383",null,"1"]
["                                 1. Доходы бюджета"]
[" Наименование показателя","Код строки","Код дохода по бюджетной классификации","Утвержденные бюджетные назначения","Исполнено","Неисполненные назначения"]
[]
[]
[]
[]
[]
[]
[1,2,3,"4","5","6"]
["Доходы бюджета - всего","010","X",222401000.69999999,52324379.009999998,{"$f":"IF(OR(D19=\"-\",E19=D19),\"-\",D19-IF(E19=\"-\",0,E19))","v":170076621.69}]
["в том числе:"]
["НАЛОГОВЫЕ И НЕНАЛОГОВЫЕ ДОХОДЫ","010","000 10000000000000 000",108579810.55,28343408.670000002,{"$f":"IF(OR(D21=\"-\",E21=D21),\"-\",D21-IF(E21=\"-\",0,E21))","v":80236401.879999995}]
["НАЛОГИ НА ПРИБЫЛЬ, ДОХОДЫ","010","000 10100000000000 000",27987200,8315665.4699999997,19671534.530000001]
["Налог на доходы физических лиц","010","000 10102000010000 110",27987200,8315665.4699999997,19671534.530000001]
["Налог на доходы физических лиц с доходов, источником которых является налоговый агент, за исключением доходов, в отношении которых исчисление и уплата налога осуществляются в соответствии со статьями 227, 227.1 и 228 Налогового кодекса Российской Федерации","010","000 10102010010000 110",27943238.23,8271703.7000000002,19671534.530000001]
["Налог на доходы физических лиц с доходов, источником которых является налоговый агент, за исключением доходов, в отношении которых исчисление и уплата налога осуществляются в соответствии со статьями 227, 227.1 и 228 Налогового кодекса Российской Федерации (сумма платежа (перерасчеты, недоимка и задолженность по соответствующему платежу, в том числе по отмененному))","010","000 10102010011000 110",27943238.23,8264303.5,19678934.73]
["Налог на доходы физических лиц с доходов, источником которых является налоговый агент, за исключением доходов, в отношении которых исчисление и уплата налога осуществляются в соответствии со статьями 227, 227.1 и 228 Налогового кодекса Российской Федерации (пени по соответствующему платежу)","010","000 10102010012100 110","-",2256.9,"-"]
["Налог на доходы физических лиц с доходов, источником которых является налоговый агент, за исключением доходов, в отношении которых исчисление и уплата налога осуществляются в соответствии со статьями 227, 227.1 и 228 Налогового кодекса Российской Федерации (суммы денежных взысканий (штрафов) по соответствующему платежу согласно законодательству Российской Федерации)","010","000 10102010013000 110","-",5143.3,"-"]
["Налог на доходы физических лиц с доходов, полученных от осуществления деятельности физическими лицами, зарегистрированными в качестве индивидуальных предпринимателей, нотариусов, занимающихся частной практикой, адвокатов, учредивших адвокатские кабинеты и других лиц, занимающихся частной практикой в соответствии со статьей 227 Налогового кодекса Российской Федерации","010","000 10102020010000 110",19476.64,19476.64,"-"]
["Налог на доходы физических лиц с доходов, полученных от осуществления деятельности физическими лицами, зарегистрированными в качестве индивидуальных предпринимателей, нотариусов, занимающихся частной практикой, адвокатов, учредивших адвокатские кабинеты и других лиц, занимающихся частной практикой в соответствии со статьей 227 Налогового кодекса Российской Федерации (сумма платежа (перерасчеты, недоимка и задолженность по соответствующему платежу, в том числе по отмененному))","010","000 10102020011000 110",19476.64,18168.7,1307.9399999999987]
["Налог на доходы физических лиц с доходов, полученных от осуществления деятельности физическими лицами, зарегистрированными в качестве индивидуальных предпринимателей, нотариусов, занимающихся частной практикой, адвокатов, учредивших адвокатские кабинеты и других лиц, занимающихся частной практикой в соответствии со статьей 227 Налогового кодекса Российской Федерации (суммы денежных взысканий (штрафов) по соответствующему платежу согласно законодательству Российской Федерации)","010","000 10102020013000 110","-",1307.94,"-"]
["Налог на доходы физических лиц с доходов, полученных физическими лицами в соответствии со статьей 228 Налогового Кодекса Российской Федерации","010","000 10102030010000 110",24485.13,24485.13,"-"]
["Налог на доходы физических лиц с доходов, полученных физическими лицами в соответствии со статьей 228 Налогового Кодекса Российской Федерации (сумма платежа (перерасчеты, недоимка и задолженность по соответствующему платежу, в том числе по отмененному))","010","000 10102030011000 110",24485.13,18803.88,5681.25]
["Налог на доходы физических лиц с доходов, полученных физическими лицами в соответствии со статьей 228 Налогового кодекса Российской Федерации (пени по соответствующему платежу)","010","000 10102030012100 110","-",3410.75,"-"]
["Налог на доходы физических лиц с доходов, полученных физическими лицами в соответствии со статьей 228 Налогового Кодекса Российской Федерации (суммы денежных взысканий (штрафов) по соответствующему платежу согласно законодательству Российской Федерации)","010","000 10102030013000 110","-",2270.5,"-"]
["НАЛОГИ НА ТОВАРЫ (РАБОТЫ, УСЛУГИ), РЕАЛИЗУЕМЫЕ НА ТЕРРИТОРИИ РОССИЙСКОЙ ФЕДЕРАЦИИ","010","000 10300000000000 000",1854100,532347.15,1321752.8500000001]
["Акцизы по подакцизным товарам (продукции), производимым на территории Российской Федерации","010","000 10302000010000 110",1854100,532347.15,1321752.8500000001]
["Доходы от уплаты акцизов на дизельное топливо, зачисляемые в консолидированные бюджеты субъектов Российской Федерации","010","000 10302230010000 110",705000,176315.78,528684.22]
["Доходы от уплаты акцизов на моторные масла для дизельных и (или) карбюраторных (инжекторных) двигателей, зачисляемые в консолидированные бюджеты субъектов Российской Федерации","010","000 10302240010000 110",20000,4221.16,15778.84]
["Доходы от уплаты акцизов на автомобильный бензин, производимый на территории Российской Федерации, зачисляемые в консолидированные бюджеты субъектов Российской Федерации","010","000 10302250010000 110",1110000,365098.45,744901.55]
["Доходы от уплаты акцизов на прямогонный бензин, производимый на территории Российской Федерации, зачисляемые в консолидированные бюджеты субъектов Российской Федерации","010","000 10302260010000 110",19100,-13288.24,32388.239999999998]
["НАЛОГИ НА СОВОКУПНЫЙ ДОХОД","010","000 10500000000000 000",3600,15694,-12094]
["Единый сельскохозяйственный налог","010","000 10503000010000 110",3600,15694,-12094]
["Единый сельскохозяйственный налог","010","000 10503010010000 110",3600,15694,-12094]
["Единый сельскохозяйственный налог (сумма платежа (перерасчеты, недоимка и задолженность по соответствующему платежу, в том числе по отмененному))","010","000 10503010011000 110",3600,15694,-12094]
["НАЛОГИ НА ИМУЩЕСТВО","010","000 10600000000000 000",42196700,8679214.9700000007,33517485.030000001]
["Налог на имущество физических лиц","010","000 10601000000000 110",1309700,122253.3,1187446.7]
["Налог на имущество физических лиц, взимаемый по ставкам, применяемым к объектам налогообложения, расположенным в границах городских поселений","010","000 10601030130000 110",1309700,122253.3,1187446.7]
["Налог на имущество физических лиц, взимаемый по ставкам, применяемым к объектам налогообложения, расположенным в границах городских поселений (сумма платежа (перерасчеты, недоимка и задолженность по соответствующему платежу, в том числе по отмененному)","010","000 10601030131000 110",1309700,114540.37,1195159.6299999999]
["Налог на имущество физических лиц, взимаемый по ставкам, применяемым к объектам налогообложения, расположенным в границах городских поселений (пени по соответствующему платежу)","010","000 10601030132100 110","-",7712.93,"-"]
["Транспортный налог","010","000 10604000020000 110",11356000,1647239.08,9708760.9199999999]
["Транспортный налог с организаций","010","000 10604011020000 110",2800000,958145.73,1841854.27]
["Транспортный налог с организаций (сумма платежа (перерасчеты, недоимка и задолженность по соответствующему платежу, в том числе по отмененному))","010","000 10604011021000 110",2800000,956158.05,1843841.95]
["Транспортный налог с организаций (пени по соответствующему платежу)","010","000 10604011022100 110","-",1987.68,{"$f":"IF(OR(D53=\"-\",E53=D53),\"-\",D53-IF(E53=\"-\",0,E53))","v":"-"}]
["Транспортный налог с физических лиц","010","000 10604012020000 110",8556000,689093.35,7866906.6500000004]
["Транспортный налог с физических лиц (сумма платежа (перерасчеты, недоимка и задолженность по соответствующему платежу, в том числе по отмененному))","010","000 10604012021000 110",8556000,645129.53,7910870.4699999997]
["Транспортный налог с физических лиц (пени по соответствующему платежу)","010","000 10604012022100 110","-",42964.74,"-"]
["Транспортный налог с физических лиц (проценты по соответствующему платежу)","010","000 10604012022200 110","-",112.53,"-"]
["Транспортный налог с физических лиц (прочие поступления)","010","000 10604012024000 110","-",886.55,"-"]
["Земельный налог","010","000 10606000000000 110",29531000,6909722.5899999999,22621277.41]
["Земельный налог с организаций","010","000 10606030030000 110",28861000,6603257.6799999997,22257742.32]
["Земельный налог с организаций, обладающих земельным участком, расположенным в границах городских поселений","010","000 10606033130000 110",28861000,6603257.6799999997,22257742.32]
["Земельный налог с физических лиц","010","000 10606040000000 110",670000,306464.90999999997,363535.09]
["Земельный налог с физических лиц, обладающих земельным участком, расположенным в границах городских поселений","010","000 10606043130000 110",670000,306464.90999999997,363535.09]
["ГОСУДАРСТВЕННАЯ ПОШЛИНА","010","000 10800000000000 000",48400,15000,33400]
["Государственная пошлина за государственную регистрацию, а также за совершение прочих юридически значимых действий","010","000 10807000010000 110",48400,15000,33400]
["Государственная пошлина за выдачу специального разрешения на движение по автомобильным дорогам транспортных средств, осуществляющих перевозки опасных, тяжеловесных и (или) крупногабаритных грузов","010","000 10807170010000 110",48400,15000,33400]
["Государственная пошлина за выдачу органом местного самоуправления поселения специального разрешения на движение по автомобильным дорогам транспортных средств, осуществляющих перевозки опасных, тяжеловесных и (или) крупногабаритных грузов, зачисляемая в бюджеты поселений","010","000 10807175010000 110",48400,15000,33400]
["ДОХОДЫ ОТ ИСПОЛЬЗОВАНИЯ ИМУЩЕСТВА, НАХОДЯЩЕГОСЯ В ГОСУДАРСТВЕННОЙ И МУНИЦИПАЛЬНОЙ СОБСТВЕННОСТИ","010","000 11100000000000 000",31865181.859999999,8661334.1799999997,23203847.68]
["Доходы, получаемые в виде арендной либо иной платы за передачу в возмездное пользование государственного и муниципального имущества (за исключением имущества бюджетных и автономных учреждений, а также имущества государственных и муниципальных унитарных предприятий, в том числе казенных)","010","000 11105000000000 120",29684181.859999999,7832730.8200000003,21851451.039999999]
["Доходы, получаемые в виде арендной платы за земельные участки, государственная собственность на которые не разграничена, а также средства от продажи права на заключение договоров аренды указанных земельных участков","010","000 11105010000000 120",17444300,4152401.54,13291898.460000001]
["Доходы, получаемые в виде арендной платы за земельные участки, государственная собственность на которые не разграничена и которые расположены в границах городских поселений, а также средства от продажи права на заключение договоров аренды указанных земельных участков","010","000 11105013130000 120",17444300,4152401.54,13291898.460000001]
["Доходы, получаемые в виде арендной платы за земли после разграничения государственной собственности на землю, а также средства от продажи права на заключение договоров аренды указанных земельных участков (за исключением земельных участков бюджетных и автономных учреждений)","010","000 11105020000000 120",1174000,562285.9,611714.1]
["Доходы, получаемые в виде арендной платы, а также средства от продажи права на заключение договоров аренды за земли, находящиеся в собственности городских поселений (за исключением земельных участков муниципальных бюджетных и автономных учреждений)","010","000 11105025130000 120",1174000,562285.9,611714.1]
["Доходы от сдачи в аренду имущества, находящегося в оперативном управлении органов государственной власти, органов местного самоуправления, государственных внебюджетных фондов и созданных ими учреждений (за исключением имущества бюджетных и автономных учреждений)","010","000 11105030000000 120",65881.86,11592.8,54289.06]
["Доходы от сдачи в аренду имущества, находящегося в оперативном управлении органов управления городских поселений и созданных ими учреждений (за исключением имущества муниципальных бюджетных и автономных учреждений)","010","000 11105035130000 120",65881.86,11592.8,54289.06]
["Доходы от сдачи в аренду имущества, составляющего государственную (муниципальную) казну (за исключением земельных участков)","010","000 11105070000000 120",11000000,3106450.58,7893549.4199999999]
["Доходы от сдачи в аренду имущества, составляющего казну городских поселений (за исключением земельных участков)","010","000 11105075130000 120",11000000,3106450.58,7893549.4199999999]
["Платежи от государственных и муниципальных унитарных предприятий","010","000 11107000000000 120",1000,"-",1000]
["Доходы от перечисления части прибыли государственных и муниципальных унитарных предприятий, остающейся после уплаты налогов и обязательных платежей","010","000 11107010000000 120",1000,"-",1000]
["Доходы от перечисления части прибыли, остающейся после уплаты налогов и иных обязательных платежей муниципальных унитарных предприятий, созданных городскими поселениями","010","000 11107015130000 120",1000,"-",1000]
["Прочие доходы от использования имущества и прав, находящихся в государственной и муниципальной собственности (за исключением имущества бюджетных и автономных учреждений, а также имущества государственных и муниципальных унитарных предприятий, в том числе казенных)","010","000 11109000000000 120",2180000,828603.36,1351396.6400000001]
["Прочие поступления от использования имущества, находящегося в государственной и муниципальной собственности (за исключением имущества бюджетных и автономных учреждений, а также имущества государственных и муниципальных унитарных предприятий, в том числе казенных)","010","000 11109040000000 120",2180000,828603.36,1351396.6400000001]
["Прочие поступления от использования имущества, находящегося в собственности городских поселений (за исключением имущества муниципальных бюджетных и автономных учреждений, а также имущества муниципальных унитарных предприятий, в том числе казенных)","010","000 11109045130000 120",2180000,828603.36,1351396.6400000001]
["ДОХОДЫ ОТ ОКАЗАНИЯ ПЛАТНЫХ УСЛУГ (РАБОТ) И КОМПЕНСАЦИИ ЗАТРАТ ГОСУДАРСТВА","010","000 11300000000000 000",156628.69,115687.13,40941.56]
["Доходы от оказания платных услуг (работ)","010","000 11301000000000 130",156628.69,115687.13,{"$f":"IF(OR(D85=\"-\",E85=D85),\"-\",D85-IF(E85=\"-\",0,E85))","v":40941.56}]
["Прочие доходы от оказания платных услуг (работ)","010","000 11301990000000 130",156628.69,115687.13,40941.56]
["Прочие доходы от оказания платных услуг (работ) получателями средств бюджетов городских поселений","010","000 11301995130000 130",156628.69,115687.13,{"$f":"IF(OR(D87=\"-\",E87=D87),\"-\",D87-IF(E87=\"-\",0,E87))","v":40941.56}]
["ДОХОДЫ ОТ ПРОДАЖИ МАТЕРИАЛЬНЫХ И НЕМАТЕРИАЛЬНЫХ АКТИВОВ","010","000 11400000000000 000",4200000,1825837.73,2374162.27]
["Доходы от реализации имущества, находящегося в государственной и муниципальной собственности (за исключением имущества бюджетных и автономных учреждений, а также имущества государственных и муниципальных унитарных предприятий, в том числе казенных)","010","000 11402000000000 000",4000000,1777487.65,2222512.35]
["Доходы от реализации имущества, находящегося в собственности городских поселений (за исключением движимого имущества муниципальных бюджетных и автономных учреждений, а также имущества муниципальных унитарных предприятий, в том числе казенных), в части реализации основных средств по указанному имуществу","010","000 11402050130000 410",4000000,1777487.65,2222512.35]
["Доходы от реализации иного имущества, находящегося в собственности городских поселений (за исключением имущества муниципальных бюджетных и автономных учреждений, а также имущества муниципальных унитарных предприятий, в том числе казенных), в части реализации основных средств по указанному имуществу","010","000 11402053130000 410",4000000,1777487.65,2222512.35]
["Доходы от продажи земельных участков, находящихся в государственной и муниципальной собственности (за исключением земельных участков бюджетных и автономных учреждений)","010","000 11406000000000 430",200000,48350.080000000002,151649.91999999998]
["Доходы от продажи земельных участков, государственная собственность на которые не разграничена","010","000 11406010000000 430",200000,48350.080000000002,151649.91999999998]
["Доходы от продажи земельных участков, государственная собственность на которые не разграничена и которые расположены в границах городских поселений","010","000 11406013130000 430",200000,48350.080000000002,151649.91999999998]
["ШТРАФЫ, САНКЦИИ, ВОЗМЕЩЕНИЕ УЩЕРБА","010","000 11600000000000 000",250000,122908.82,127091.18]
["Денежные взыскания (штрафы) за нарушение законодательства Российской Федерации о размещении заказов на поставки товаров, выполнение работ, оказание услуг","010","000 11633000000000 140","-",67505.42,"-"]
["Денежные взыскания (штрафы) за нарушение законодательства Российской Федерации о контрактной системе в сфере закупок товаров, работ, услуг для обеспечения государственных и муниципальных нужд для нужд городских поселений","010","000 11633050130000 140","-",67505.42,"-"]
["Поступления сумм в возмещение вреда, причиняемого автомобильным дорогам транспортными средствами, осуществляющими перевозки тяжеловесных и (или) крупногабаритных грузов","010","000 11637000000000 140",50000,32327.64,17672.36]
["Поступления сумм в возмещение вреда, причиняемого автомобильным дорогам местного значения транспортными средствами, осуществляющими перевозки тяжеловесных и (или) крупногабаритных грузов, зачисляемые в бюджеты городских поселений","010","000 11637040130000 140",50000,32327.64,17672.36]
["Прочие поступления от денежных взысканий (штрафов) и иных сумм в возмещение ущерба","010","000 11690000000000 140",200000,23075.759999999998,176924.24]
["Прочие поступления от денежных взысканий (штрафов) и иных сумм в возмещение ущерба, зачисляемые в бюджеты городских поселений","010","000 11690050130000 140",200000,23075.759999999998,176924.24]
["ПРОЧИЕ НЕНАЛОГОВЫЕ ДОХОДЫ","010","000 11700000000000 000",18000,59719.22,-41719.22]
["Невыясненные поступления","010","000 11701000000000 180","-",-8623.5400000000009,"-"]
["Невыясненные поступления, зачисляемые в бюджеты городских поселений","010","000 11701050130000 180","-",-8623.5400000000009,"-"]
["Прочие неналоговые доходы","010","000 11705000000000 180",18000,68342.759999999995,-50342.759999999995]
["Прочие неналоговые доходы бюджетов городских поселений","010","000 11705050130000 180",18000,68342.759999999995,-50342.759999999995]
["БЕЗВОЗМЕЗДНЫЕ ПОСТУПЛЕНИЯ","010","000 20000000000000 000",113821190.15000001,23980970.34,89840219.810000002]
["БЕЗВОЗМЕЗДНЫЕ ПОСТУПЛЕНИЯ ОТ ДРУГИХ БЮДЖЕТОВ БЮДЖЕТНОЙ СИСТЕМЫ РОССИЙСКОЙ ФЕДЕРАЦИИ","010","000 20200000000000 000",113821190.15000001,59496280.770000003,54324909.380000003]
["Дотации бюджетам субъектов Российской Федерации и муниципальных образований","010","000 20201000000000 151",6304300,3961465,2342835]
["Дотации на выравнивание бюджетной обеспеченности","010","000 20201001000000 151",5206300,2863465,2342835]
["Дотации бюджетам городских поселений на выравнивание бюджетной обеспеченности","010","000 20201001130000 151",5206300,2863465,2342835]
["Дотации бюджетам на поддержку мер по обеспечению сбалансированности бюджетов","010","000 20201003000000 151",1098000,1098000,"-"]
["Дотации бюджетам городских поселений на поддержку мер по обеспечению сбалансированности бюджетов","010","000 20201003130000 151",1098000,1098000,"-"]
["Субсидии бюджетам бюджетной системы Российской Федерации (межбюджетные субсидии)","010","000 20202000000000 151",78154355.769999996,54199355.770000003,23954999.999999993]
["Субсидии бюджетам на софинансирование капитальных вложений в объекты государственной (муниципальной) собственности","010","000 20202077000000 151",20000000,"-",{"$f":"IF(OR(D115=\"-\",E115=D115),\"-\",D115-IF(E115=\"-\",0,E115))","v":20000000}]
["Субсидии бюджетам городских поселений на софинансирование капитальных вложений в объекты муниципальной собственности","010","000 20202077130000 151",20000000,"-",20000000]
["Субсидии бюджетам муниципальных образований на обеспечение мероприятий по капитальному ремонту многоквартирных домов, переселению граждан из аварийного жилищного фонда и модернизации систем коммунальной инфраструктуры за счет средств бюджетов","010","000 20202089000000 151",46962489.770000003,46962489.770000003,"-"]
["Субсидии бюджетам городских поселений на обеспечение мероприятий по капитальному ремонту многоквартирных домов, переселению граждан из аварийного жилищного фонда и модернизации систем коммунальной инфраструктуры за счет средств бюджетов","010","000 20202089130000 151",46962489.770000003,46962489.770000003,"-"]
[null,"010","000 20202089130000 151",46962489.770000003,46962489.770000003,{"$f":"IF(OR(D119=\"-\",E119=D119),\"-\",D119-IF(E119=\"-\",0,E119))","v":"-"}]
["Субсидии бюджетам на осуществление дорожной деятельности в отношении автомобильных дорог общего пользования, а также капитального ремонта и ремонта дворовых территорий многоквартирных домов, проездов к дворовым территориям многоквартирных домов населенных пунктов","010","000 20202216000000 151",1696500,1696500,"-"]
["Субсидии бюджетам городских поселений на осуществление дорожной деятельности в отношении автомобильных дорог общего пользования, а также капитального ремонта и ремонта дворовых территорий многоквартирных домов, проездов к дворовым территориям многоквартирных домов населенных пунктов","010","000 20202216130000 151",1696500,1696500,"-"]
["Прочие субсидии","010","000 20202999000000 151",9495366,5540366,3955000]
["Прочие субсидии бюджетам городских поселений","010","000 20202999130000 151",9495366,5540366,3955000]
["Субвенции бюджетам субъектов Российской Федерации и муниципальных образований","010","000 20203000000000 151",2146826,1185960,960866]
["Субвенции бюджетам на осуществление первичного воинского учета на территориях, где отсутствуют военные комиссариаты","010","000 20203015000000 151",1023626,624360,399266]
["Субвенции бюджетам городских поселений на осуществление первичного воинского учета на территориях, где отсутствуют военные комиссариаты","010","000 20203015130000 151",1023626,624360,399266]
["Субвенции местным бюджетам на выполнение передаваемых полномочий субъектов Российской Федерации","010","000 20203024000000 151",1123200,561600,561600]
["Субвенции бюджетам городских поселений на выполнение передаваемых полномочий субъектов Российской Федерации","010","000 20203024130000 151",1123200,561600,561600]
["Иные межбюджетные трансферты","010","000 20204000000000 151",27215708.379999999,149500,27066208.379999999]
["Прочие межбюджетные трансферты, передаваемые бюджетам","010","000 20204999000000 151",27215708.379999999,149500,27066208.379999999]
["Прочие межбюджетные трансферты, передаваемые бюджетам городских поселений","010","000 20204999130000 151",27215708.379999999,149500,27066208.379999999]
["ВОЗВРАТ ОСТАТКОВ СУБСИДИЙ, СУБВЕНЦИЙ И ИНЫХ МЕЖБЮДЖЕТНЫХ ТРАНСФЕРТОВ, ИМЕЮЩИХ ЦЕЛЕВОЕ НАЗНАЧЕНИЕ, ПРОШЛЫХ ЛЕТ","010","000 21900000000000 000","-",-35515310.43,"-"]
["Возврат остатков субсидий, субвенций и иных межбюджетных трансфертов, имеющих целевое назначение, прошлых лет из бюджетов городских поселений","010","000 21905000130000 151","-",-35515310.43,"-"]

{"sheet":"Расходы","index":1,"n_rows":584,"n_cols":6,"rows_kept":584,"cut":false,"hidden":false,"merged":[[3,5,8,5],[1,0,1,3],[3,0,10,0],[3,1,10,1],[3,2,8,2],[3,3,10,3],[3,4,8,4]]}
[]
["                          2. Расходы бюджета",null,null,null,null,"Форма 0503117  с.2"]
[]
[" Наименование показателя","Код строки","Код расхода по бюджетной классификации","Утвержденные бюджетные назначения","Исполнено","Неисполненные назначения"]
[]
[]
[]
[]
[]
[]
[]
[1,2,3,"4","5","6"]
["Расходы бюджета - всего","200","x",283484452.06999999,40538873.590000004,{"$f":"IF(OR(D13=\"-\",E13=D13),\"-\",D13-IF(E13=\"-\",0,E13))","v":242945578.47999999}]
["в том числе:"]
["ОБЩЕГОСУДАРСТВЕННЫЕ ВОПРОСЫ","200","000 0100 0000000 000 000 ",46425441.969999999,13114709.25,{"$f":"IF(OR(D15=\"-\",E15=D15),\"-\",D15-IF(E15=\"-\",0,E15))","v":33310732.719999999}]
["Функционирование законодательных (представительных) органов государственной власти и представительных органов муниципальных образований","200","000 0103 0000000 000 000 ",530178,231452,298726]
["Обеспечение деятельности Совета депутатов","200","000 0103 Г110000 000 000 ",488178,231452,256726]
["Расходы на обеспечение функций органов местного самоуправления в рамках обеспечения деятельности Совета депутатов","200","000 0103 Г11Г015 000 000 ",28471,1600,26871]
["Иные выплаты персоналу государственных (муниципальных) органов, за исключением фонда оплаты труда","200","000 0103 Г11Г015 122 000 ",26111,"-",26111]
["Расходы","200","000 0103 Г11Г015 122 200 ",26111,"-",26111]
["Оплата труда и начисления на выплаты по оплате труда","200","000 0103 Г11Г015 122 210 ",20048,"-",20048]
["Прочие выплаты","200","000 0103 Г11Г015 122 212 ",20048,"-",20048]
["Оплата работ, услуг","200","000 0103 Г11Г015 122 220 ",6063,"-",6063]
["Транспортные услуги","200","000 0103 Г11Г015 122 222 ",3063,"-",3063]
["Прочие работы, услуги","200","000 0103 Г11Г015 122 226 ",3000,"-",3000]
["Закупка товаров, работ, услуг в сфере информационно-коммуникационных технологий","200","000 0103 Г11Г015 242 000 ",2360,1600,760]
["Расходы","200","000 0103 Г11Г015 242 200 ",2360,1600,760]
["Оплата работ, услуг","200","000 0103 Г11Г015 242 220 ",2360,1600,760]
["Прочие работы, услуги","200","000 0103 Г11Г015 242 226 ",2360,1600,760]
["Межбюджетные трансферты бюджетам муниципальных районов из бюджетов поселений на исполнение полномочий по осуществлению внешнего муниципального финансового контроля в рамках обеспечения деятельности Совета депутатов","200","000 0103 Г11П703 000 000 ",459707,229852,229855]
["Иные межбюджетные трансферты","200","000 0103 Г11П703 540 000 ",459707,229852,229855]
["Расходы","200","000 0103 Г11П703 540 200 ",459707,229852,229855]
["Безвозмездные перечисления бюджетам","200","000 0103 Г11П703 540 250 ",459707,229852,229855]
["Перечисления другим бюджетам бюджетной системы Российской Федерации","200","000 0103 Г11П703 540 251 ",459707,229852,229855]
["Непрограммные расходы органов местного самоуправления по решению общегосударственных вопросов","200","000 0103 Г210000 000 000 ",42000,"-",42000]
["Премирование и награждение юридических и физических лиц по решению совета депутатов МО \"Город Пикалево\" вне системы оплаты труда в рамках непрограммных расходов органов местного самоуправления по решению общегосударственных вопросов","200","000 0103 Г21Г301 000 000 ",42000,"-",42000]
["Публичные нормативные выплаты гражданам несоциального характера","200","000 0103 Г21Г301 330 000 ",42000,"-",42000]
["Расходы","200","000 0103 Г21Г301 330 200 ",42000,"-",42000]
["Прочие расходы","200","000 0103 Г21Г301 330 290 ",42000,"-",42000]
["Функционирование Правительства Российской Федерации, высших исполнительных органов государственной власти субъектов Российской Федерации, местных администраций","200","000 0104 0000000 000 000 ",21776207.969999999,4914562.62,16861645.349999998]
["Обеспечение деятельности главы администрации","200","000 0104 Г120000 000 000 ",1565225,351593.39,1213631.6099999999]
["Расходы на выплаты по оплате труда работников органов местного самоуправления  в рамках обеспечения деятельности главы администрации","200","000 0104 Г12Г014 000 000 ",1533225,349493.39,1183731.6099999999]
["Фонд оплаты труда государственных (муниципальных) органов и взносы по обязательному социальному страхованию","200","000 0104 Г12Г014 121 000 ",1533225,349493.39,1183731.6099999999]
["Расходы","200","000 0104 Г12Г014 121 200 ",1533225,349493.39,1183731.6099999999]
["Оплата труда и начисления на выплаты по оплате труда","200","000 0104 Г12Г014 121 210 ",1533225,349493.39,1183731.6099999999]
["Заработная плата","200","000 0104 Г12Г014 121 211 ",1177592,269322.78999999998,908269.21]
["Начисления на выплаты по оплате труда","200","000 0104 Г12Г014 121 213 ",355633,80170.600000000006,275462.40000000002]
["Расходы на обеспечение функций органов местного самоуправления в рамках обеспечения деятельности главы администрации","200","000 0104 Г12Г015 000 000 ",32000,2100,29900]
["Иные выплаты персоналу государственных (муниципальных) органов, за исключением фонда оплаты труда","200","000 0104 Г12Г015 122 000 ",32000,2100,29900]
["Расходы","200","000 0104 Г12Г015 122 200 ",32000,2100,29900]
["Оплата труда и начисления на выплаты по оплате труда","200","000 0104 Г12Г015 122 210 ",32000,2100,29900]
["Прочие выплаты","200","000 0104 Г12Г015 122 212 ",32000,2100,29900]
["Обеспечение деятельности администрации","200","000 0104 Г130000 000 000 ",20210982.969999999,4562969.2300000004,15648013.739999998]
["Расходы на выплаты по оплате труда работников органов местного самоуправления в рамках обеспечения деятельности администрации","200","000 0104 Г13Г014 000 000 ",19544492,4418521.71,15125970.289999999]
["Фонд оплаты труда государственных (муниципальных) органов и взносы по обязательному социальному страхованию","200","000 0104 Г13Г014 121 000 ",19544492,4418521.71,15125970.289999999]
["Расходы","200","000 0104 Г13Г014 121 200 ",19544492,4418521.71,15125970.289999999]
["Оплата труда и начисления на выплаты по оплате труда","200","000 0104 Г13Г014 121 210 ",19544492,4418521.71,15125970.289999999]
["Заработная плата","200","000 0104 Г13Г014 121 211 ",15011131,3462970.38,11548160.620000001]
["Начисления на выплаты по оплате труда","200","000 0104 Г13Г014 121 213 ",4533361,955551.33,3577809.67]
["Расходы на обеспечение функций органов местного самоуправления в рамках обеспечения деятельности  администрации","200","000 0104 Г13Г015 000 000 ",428790.97,65214.19,363576.77999999997]
["Иные выплаты персоналу государственных (муниципальных) органов, за исключением фонда оплаты труда","200","000 0104 Г13Г015 122 000 ",118000,16471.650000000001,101528.35]
["Расходы","200","000 0104 Г13Г015 122 200 ",118000,16471.650000000001,101528.35]
["Оплата труда и начисления на выплаты по оплате труда","200","000 0104 Г13Г015 122 210 ",30000,5230.6499999999996,24769.35]
["Прочие выплаты","200","000 0104 Г13Г015 122 212 ",30000,5230.6499999999996,24769.35]
["Оплата работ, услуг","200","000 0104 Г13Г015 122 220 ",88000,11241,76759]
["Транспортные услуги","200","000 0104 Г13Г015 122 222 ",70000,11241,58759]
["Прочие работы, услуги","200","000 0104 Г13Г015 122 226 ",18000,"-",18000]
["Закупка товаров, работ, услуг в сфере информационно-коммуникационных технологий","200","000 0104 Г13Г015 242 000 ",226218,39590.160000000003,186627.84]
["Расходы","200","000 0104 Г13Г015 242 200 ",226218,39590.160000000003,186627.84]
["Оплата работ, услуг","200","000 0104 Г13Г015 242 220 ",226218,39590.160000000003,186627.84]
["Услуги связи","200","000 0104 Г13Г015 242 221 ",78000,16450,61550]
["Прочие работы, услуги","200","000 0104 Г13Г015 242 226 ",148218,23140.16,125077.84]
["Прочая закупка товаров, работ и услуг для обеспечения государственных (муниципальных) нужд","200","000 0104 Г13Г015 244 000 ",77782,6324.26,71457.740000000005]
["Расходы","200","000 0104 Г13Г015 244 200 ",77782,6324.26,71457.740000000005]
["Оплата работ, услуг","200","000 0104 Г13Г015 244 220 ",77782,6324.26,71457.740000000005]
["Работы, услуги по содержанию имущества","200","000 0104 Г13Г015 244 225 ",20782,3294.26,17487.739999999998]
["Прочие работы, услуги","200","000 0104 Г13Г015 244 226 ",57000,3030,53970]
["Уплата прочих налогов, сборов и иных платежей","200","000 0104 Г13Г015 852 000 ",2980,1528.12,1451.88]
["Расходы","200","000 0104 Г13Г015 852 200 ",2980,1528.12,{"$f":"IF(OR(D79=\"-\",E79=D79),\"-\",D79-IF(E79=\"-\",0,E79))","v":1451.88}]
["Прочие расходы","200","000 0104 Г13Г015 852 290 ",2980,1528.12,1451.88]
["Уплата иных платежей","200","000 0104 Г13Г015 853 000 ",3810.97,1300,2510.9699999999998]
["Расходы","200","000 0104 Г13Г015 853 200 ",3810.97,1300,2510.9699999999998]
["Прочие расходы","200","000 0104 Г13Г015 853 290 ",3810.97,1300,2510.9699999999998]
["Межбюджетные трансферты бюджетам муниципальных районов из бюджетов поселений на исполнение полномочий по осуществлению внешнего муниципального жилищного контроля в рамках непрограммных расходов органов местного самоуправления по вопросам жилищно-коммунального хозяйства","200","000 0104 Г13П704 000 000 ",237700,79233.33,158466.66999999998]
["Иные межбюджетные трансферты","200","000 0104 Г13П704 540 000 ",237700,79233.33,158466.66999999998]
["Расходы","200","000 0104 Г13П704 540 200 ",237700,79233.33,158466.66999999998]
["Безвозмездные перечисления бюджетам","200","000 0104 Г13П704 540 250 ",237700,79233.33,158466.66999999998]
["Перечисления другим бюджетам бюджетной системы Российской Федерации","200","000 0104 Г13П704 540 251 ",237700,79233.33,158466.66999999998]
["Резервные фонды","200","000 0111 0000000 000 000 ",386600,"-",386600]
["Непрограммные расходы органов местного самоуправления по решению общегосударственных вопросов","200","000 0111 Г210000 000 000 ",351600,"-",351600]
["Резервный фонд администрации  в рамках непрограммных расходов  органов местного самоуправления по решению общегосударственных вопросов","200","000 0111 Г21Г101 000 000 ",351600,"-",351600]
["Резервные средства","200","000 0111 Г21Г101 870 000 ",351600,"-",351600]
["Расходы","200","000 0111 Г21Г101 870 200 ",351600,"-",351600]
["Прочие расходы","200","000 0111 Г21Г101 870 290 ",351600,"-",351600]
["Подпрограмма \"Предупреждение чрезвычайных ситуаций, защита населения и территорий от чрезвычайных ситуаций природного и техногенного характера, развитие гражданской обороны, обеспечение пожарной безопасности и безопасности на водных объектах\" муниципальной программы \"Безопасность в МО \"Город Пикалево\"","200","000 0111 П410000 000 000 ",35000,"-",35000]
["Резервный фонд администрации по ликвидации чрезвычайных ситуаций природного и техногенного характера и стихийных бедствий  в рамках подпрограммы \"Предупреждение чрезвычайных ситуаций, защита населения и территорий от чрезвычайных ситуаций природного и техногенного характера, развитие гражданской обороны, обеспечение пожарной безопасности и безопасности на водных объектах\" муниципальной  программы \"Безопасность в МО \"Город Пикалево\"","200","000 0111 П41П104 000 000 ",35000,"-",35000]
["Резервные средства","200","000 0111 П41П104 870 000 ",35000,"-",35000]
["Расходы","200","000 0111 П41П104 870 200 ",35000,"-",35000]
["Прочие расходы","200","000 0111 П41П104 870 290 ",35000,"-",35000]
["Другие общегосударственные вопросы","200","000 0113 0000000 000 000 ",23732456,7968694.6299999999,15763761.370000001]
["Непрограммные расходы органов местного самоуправления по решению общегосударственных вопросов","200","000 0113 Г210000 000 000 ",15779664,7637720.46,8141943.54]
["Обеспечение деятельности муниципальных казенных учреждений в рамках непрограммных расходов  органов местного самоуправления по решению общегосударственных вопросов","200","000 0113 Г21Г016 000 000 ",7482209,2004759.09,5477449.9100000001]
["Фонд оплаты труда казенных учреждений и взносы по обязательному социальному страхованию","200","000 0113 Г21Г016 111 000 ",3251915.45,905237.08,2346678.37]
["Расходы","200","000 0113 Г21Г016 111 200 ",3251915.45,905237.08,2346678.37]
["Оплата труда и начисления на выплаты по оплате труда","200","000 0113 Г21Г016 111 210 ",3251915.45,905237.08,2346678.37]
["Заработная плата","200","000 0113 Г21Г016 111 211 ",2497572.64,702920.23,1794652.4100000001]
["Начисления на выплаты по оплате труда","200","000 0113 Г21Г016 111 213 ",754342.81,202316.85,552025.96000000008]
["Иные выплаты персоналу казенных учреждений, за исключением фонда оплаты труда","200","000 0113 Г21Г016 112 000 ",35700,9900,25800]
["Расходы","200","000 0113 Г21Г016 112 200 ",35700,9900,25800]
["Оплата труда и начисления на выплаты по оплате труда","200","000 0113 Г21Г016 112 210 ",26400,8000,18400]
["Прочие выплаты","200","000 0113 Г21Г016 112 212 ",26400,8000,18400]
["Оплата работ, услуг","200","000 0113 Г21Г016 112 220 ",9300,1900,7400]
["Прочие работы, услуги","200","000 0113 Г21Г016 112 226 ",9300,1900,7400]
["Закупка товаров, работ, услуг в сфере информационно-коммуникационных технологий","200","000 0113 Г21Г016 242 000 ",1010581,205679.05,804901.95]
["Расходы","200","000 0113 Г21Г016 242 200 ",592901,137358.04999999999,455542.95]
["Оплата работ, услуг","200","000 0113 Г21Г016 242 220 ",592901,137358.04999999999,455542.95]
["Услуги связи","200","000 0113 Г21Г016 242 221 ",397728,68136.509999999995,329591.49]
["Работы, услуги по содержанию имущества","200","000 0113 Г21Г016 242 225 ",25760,800,24960]
["Прочие работы, услуги","200","000 0113 Г21Г016 242 226 ",169413,68421.539999999994,100991.46]
["Поступление нефинансовых активов","200","000 0113 Г21Г016 242 300 ",417680,68321,349359]
["Увеличение стоимости основных средств","200","000 0113 Г21Г016 242 310 ",121980,"-",121980]
["Увеличение стоимости материальных запасов","200","000 0113 Г21Г016 242 340 ",295700,68321,227379]
["Прочая закупка товаров, работ и услуг для обеспечения государственных (муниципальных) нужд","200","000 0113 Г21Г016 244 000 ",3179396.55,882587.46,2296809.09]
["Расходы","200","000 0113 Г21Г016 244 200 ",2288059.5499999998,736143.86,1551915.69]
["Оплата работ, услуг","200","000 0113 Г21Г016 244 220 ",2173139.5499999998,713822.36,1459317.19]
["Услуги связи","200","000 0113 Г21Г016 244 221 ",46500,14941.05,31558.95]
["Коммунальные услуги","200","000 0113 Г21Г016 244 223 ",726746,315181.45,411564.55]
["Арендная плата за пользование имуществом","200","000 0113 Г21Г016 244 224 ",81883,81833,50]
["Работы, услуги по содержанию имущества","200","000 0113 Г21Г016 244 225 ",684216,167004.54,517211.45999999996]
["Прочие работы, услуги","200","000 0113 Г21Г016 244 226 ",633794.55000000005,134862.32,498932.23000000004]
["Прочие расходы","200","000 0113 Г21Г016 244 290 ",114920,22321.5,92598.5]
["Поступление нефинансовых активов","200","000 0113 Г21Г016 244 300 ",891337,146443.6,744893.4]
["Увеличение стоимости основных средств","200","000 0113 Г21Г016 244 310 ",48400,2193,46207]
["Увеличение стоимости материальных запасов","200","000 0113 Г21Г016 244 340 ",842937,144250.6,698686.4]
["Уплата прочих налогов, сборов и иных платежей","200","000 0113 Г21Г016 852 000 ",4616,1355.5,3260.5]
["Расходы","200","000 0113 Г21Г016 852 200 ",4616,1355.5,3260.5]
["Прочие расходы","200","000 0113 Г21Г016 852 290 ",4616,1355.5,3260.5]
["Обеспечение управления активами и приватизации муниципального имущества  в рамках непрограммных расходов  органов местного самоуправления по решению общегосударственных вопросов","200","000 0113 Г21Г103 000 000 ",600000,3500,596500]
["Прочая закупка товаров, работ и услуг для обеспечения государственных (муниципальных) нужд","200","000 0113 Г21Г103 244 000 ",600000,3500,596500]
["Расходы","200","000 0113 Г21Г103 244 200 ",600000,3500,596500]
["Оплата работ, услуг","200","000 0113 Г21Г103 244 220 ",600000,3500,596500]
["Прочие работы, услуги","200","000 0113 Г21Г103 244 226 ",600000,3500,596500]
["Содержание и обслуживание объектов муниципального имущества в рамках непрограммных расходов органов местного самоуправления по решению общегосударственных вопросов","200","000 0113 Г21Г104 000 000 ",7422275,5605345.3700000001,{"$f":"IF(OR(D143=\"-\",E143=D143),\"-\",D143-IF(E143=\"-\",0,E143))","v":1816929.63}]
["Прочая закупка товаров, работ и услуг для обеспечения государственных (муниципальных) нужд","200","000 0113 Г21Г104 244 000 ",7043460,5508499.3099999996,1534960.6900000004]
["Расходы","200","000 0113 Г21Г104 244 200 ",6365599.6100000003,5508499.3099999996,857100.30000000075]
["Оплата работ, услуг","200","000 0113 Г21Г104 244 220 ",6365599.6100000003,5508499.3099999996,857100.30000000075]
["Работы, услуги по содержанию имущества","200","000 0113 Г21Г104 244 225 ",6365599.6100000003,5508499.3099999996,857100.30000000075]
["Поступление нефинансовых активов","200","000 0113 Г21Г104 244 300 ",677860.39,"-",677860.39]
["Увеличение стоимости основных средств","200","000 0113 Г21Г104 244 310 ",677860.39,"-",677860.39]
["Субсидии юридическим лицам (кроме некоммерческих организаций), индивидуальным предпринимателям, физическим лицам","200","000 0113 Г21Г104 810 000 ",378815,96846.06,281968.94]
["Расходы","200","000 0113 Г21Г104 810 200 ",378815,96846.06,281968.94]
["Безвозмездные перечисления организациям","200","000 0113 Г21Г104 810 240 ",378815,96846.06,281968.94]
["Безвозмездные перечисления организациям, за исключением государственных и муниципальных организаций","200","000 0113 Г21Г104 810 242 ",378815,96846.06,281968.94]
["Ежегодный членский взнос в Ассоциацию \"Совет муниципальных образований Ленинградской области\" в рамках непрограммных расходов  органов местного самоуправления по решению общегосударственных вопросов","200","000 0113 Г21Г105 000 000 ",36655,"-",36655]
["Уплата иных платежей","200","000 0113 Г21Г105 853 000 ",36655,"-",36655]
["Расходы","200","000 0113 Г21Г105 853 200 ",36655,"-",36655]
["Прочие расходы","200","000 0113 Г21Г105 853 290 ",36655,"-",36655]
["Ежегодный членский взнос в Союз малых городов Российской Федерации в рамках непрограммных расходов  органов местного самоуправления по решению общегосударственных вопросов","200","000 0113 Г21Г106 000 000 ",21525,"-",21525]
["Уплата иных платежей","200","000 0113 Г21Г106 853 000 ",21525,"-",21525]
["Расходы","200","000 0113 Г21Г106 853 200 ",21525,"-",21525]
["Прочие расходы","200","000 0113 Г21Г106 853 290 ",21525,"-",21525]
["Обеспечение органов местного самоуправления статистической информацией в рамках непрограммных расходов  органов местного самоуправления по решению общегосударственных вопросов","200","000 0113 Г21Г107 000 000 ",83000,24116,58884]
["Прочая закупка товаров, работ и услуг для обеспечения государственных (муниципальных) нужд","200","000 0113 Г21Г107 244 000 ",83000,24116,58884]
["Расходы","200","000 0113 Г21Г107 244 200 ",83000,24116,58884]
["Оплата работ, услуг","200","000 0113 Г21Г107 244 220 ",83000,24116,58884]
["Прочие работы, услуги","200","000 0113 Г21Г107 244 226 ",83000,24116,58884]
["Мероприятия по диспансеризации лиц, замещающих муниципальные должности и должности муниципальных служащих в рамках непрограммных расходов  органов местного самоуправления по решению общегосударственных вопросов","200","000 0113 Г21Г108 000 000 ",84000,"-",84000]
["Прочая закупка товаров, работ и услуг для обеспечения государственных (муниципальных) нужд","200","000 0113 Г21Г108 244 000 ",84000,"-",84000]
["Расходы","200","000 0113 Г21Г108 244 200 ",84000,"-",84000]
["Оплата работ, услуг","200","000 0113 Г21Г108 244 220 ",84000,"-",84000]
["Прочие работы, услуги","200","000 0113 Г21Г108 244 226 ",84000,"-",84000]
["Исполнение судебных актов, вступивших в законную силу, по искам к МО \"Город Пикалево\" в рамках непрограммных расходов  органов местного самоуправления по решению общегосударственных вопросов","200","000 0113 Г21Г109 000 000 ",50000,"-",50000]
["Исполнение судебных актов Российской Федерации и мировых соглашений по возмещению вреда, причиненного в результате незаконных действий (бездействия) органов государственной власти (государственных органов), органов местного самоуправления либо должностных лиц этих органов, а также в результате деятельности казенных учреждений","200","000 0113 Г21Г109 831 000 ",50000,"-",50000]
["Расходы","200","000 0113 Г21Г109 831 200 ",50000,"-",50000]
["Прочие расходы","200","000 0113 Г21Г109 831 290 ",50000,"-",50000]
["Подпрограмма \"Обеспечение правопорядка и профилактика правонарушений\" муниципальной  программы \"Безопасность в МО \"Город Пикалево\"","200","000 0113 П420000 000 000 ",7543200,268157.96999999997,7275042.0300000003]
["Создание в МО \"Город Пикалево\" аппаратно-программного комплекса автоматизированной информационной системы \"Безопасный город\" за счет средств областного бюджета в рамках подпрограммы \"Обеспечение правопорядка и профилактика правонарушений\" муниципальной программы \"Безопасность в МО \"Город Пикалево\"","200","000 0113 П427043 000 000 ",5700000,"-",5700000]
["Прочая закупка товаров, работ и услуг для обеспечения государственных (муниципальных) нужд","200","000 0113 П427043 244 000 ",5700000,"-",5700000]
["Расходы","200","000 0113 П427043 244 200 ",3505370,"-",3505370]
["Оплата работ, услуг","200","000 0113 П427043 244 220 ",3505370,"-",3505370]
["Прочие работы, услуги","200","000 0113 П427043 244 226 ",3505370,"-",3505370]
["Поступление нефинансовых активов","200","000 0113 П427043 244 300 ",2194630,"-",2194630]
["Увеличение стоимости основных средств","200","000 0113 П427043 244 310 ",2194630,"-",2194630]
["Профилактика безнадзорности и правонарушений несовершеннолетних за счет средств субвенции областного бюджета в рамках подпрограммы \"Обеспечение правопорядка и профилактика правонарушений\" государственной программы Ленинградской области \"Безопасность Ленинградской области\" в рамках подпрограммы \"Обеспечение правопорядка и профилактика правонарушений\" муниципальной  программы \"Безопасность в МО \"Город Пикалево\"","200","000 0113 П427133 000 000 ",555100,133083.32,422016.68]
["Фонд оплаты труда государственных (муниципальных) органов и взносы по обязательному социальному страхованию","200","000 0113 П427133 121 000 ",529872,128055.94,401816.06]
["Расходы","200","000 0113 П427133 121 200 ",529872,128055.94,401816.06]
["Оплата труда и начисления на выплаты по оплате труда","200","000 0113 П427133 121 210 ",529872,128055.94,401816.06]
["Заработная плата","200","000 0113 П427133 121 211 ",406968,101136.67,305831.33]
["Начисления на выплаты по оплате труда","200","000 0113 П427133 121 213 ",122904,26919.27,95984.73]
["Иные выплаты персоналу государственных (муниципальных) органов, за исключением фонда оплаты труда","200","000 0113 П427133 122 000 ",800,200,600]
["Расходы","200","000 0113 П427133 122 200 ",800,200,600]
["Оплата труда и начисления на выплаты по оплате труда","200","000 0113 П427133 122 210 ",800,200,600]
["Прочие выплаты","200","000 0113 П427133 122 212 ",800,200,600]
["Закупка товаров, работ, услуг в сфере информационно-коммуникационных технологий","200","000 0113 П427133 242 000 ",16995,3679.2,13315.8]
["Расходы","200","000 0113 П427133 242 200 ",12195,3679.2,8515.7999999999993]
["Оплата работ, услуг","200","000 0113 П427133 242 220 ",12195,3679.2,8515.7999999999993]
["Услуги связи","200","000 0113 П427133 242 221 ",12195,3679.2,8515.7999999999993]
["Поступление нефинансовых активов","200","000 0113 П427133 242 300 ",4800,"-",4800]
["Увеличение стоимости материальных запасов","200","000 0113 П427133 242 340 ",4800,"-",4800]
["Прочая закупка товаров, работ и услуг для обеспечения государственных (муниципальных) нужд","200","000 0113 П427133 244 000 ",7433,1148.18,6284.82]
["Расходы","200","000 0113 П427133 244 200 ",6400,1148.18,5251.82]
["Оплата работ, услуг","200","000 0113 П427133 244 220 ",6400,1148.18,5251.82]
["Услуги связи","200","000 0113 П427133 244 221 ",6400,1148.18,5251.82]
["Поступление нефинансовых активов","200","000 0113 П427133 244 300 ",1033,"-",1033]
["Увеличение стоимости материальных запасов","200","000 0113 П427133 244 340 ",1033,"-",1033]
["Мероприятия в сфере административных правоотношений за счет средств субвенции областного бюджета в рамках подпрограммы \"Обеспечение правопорядка и профилактика правонарушений\" государственной программы Ленинградской области \"Безопасность Ленинградской области\" в рамках подпрограммы \"Обеспечение правопорядка и профилактика правонарушений\" муниципальной  программы \"Безопасность в МО \"Город Пикалево\"","200","000 0113 П427134 000 000 ",568100,135074.65,433025.35]
["Фонд оплаты труда государственных (муниципальных) органов и взносы по обязательному социальному страхованию","200","000 0113 П427134 121 000 ",529872,122741.09,{"$f":"IF(OR(D207=\"-\",E207=D207),\"-\",D207-IF(E207=\"-\",0,E207))","v":407130.91000000003}]
["Расходы","200","000 0113 П427134 121 200 ",529872,122741.09,407130.91000000003]
["Оплата труда и начисления на выплаты по оплате труда","200","000 0113 П427134 121 210 ",529872,122741.09,407130.91000000003]
["Заработная плата","200","000 0113 П427134 121 211 ",406968,96126.8,310841.2]
["Начисления на выплаты по оплате труда","200","000 0113 П427134 121 213 ",122904,26614.29,96289.709999999992]
["Закупка товаров, работ, услуг в сфере информационно-коммуникационных технологий","200","000 0113 П427134 242 000 ",5100,"-",5100]
["Расходы","200","000 0113 П427134 242 200 ",2100,"-",2100]
["Оплата работ, услуг","200","000 0113 П427134 242 220 ",2100,"-",2100]
["Работы, услуги по содержанию имущества","200","000 0113 П427134 242 225 ",2100,"-",2100]
["Поступление нефинансовых активов","200","000 0113 П427134 242 300 ",3000,"-",3000]
["Увеличение стоимости материальных запасов","200","000 0113 П427134 242 340 ",3000,"-",3000]
["Прочая закупка товаров, работ и услуг для обеспечения государственных (муниципальных) нужд","200","000 0113 П427134 244 000 ",33128,12333.56,20794.440000000002]
["Расходы","200","000 0113 П427134 244 200 ",27500,10682.56,16817.440000000002]
["Оплата работ, услуг","200","000 0113 П427134 244 220 ",27500,10682.56,16817.440000000002]
["Услуги связи","200","000 0113 П427134 244 221 ",27500,10682.56,16817.440000000002]
["Поступление нефинансовых активов","200","000 0113 П427134 244 300 ",5628,1651,3977]
["Увеличение стоимости материальных запасов","200","000 0113 П427134 244 340 ",5628,1651,3977]
["Создание в МО \"Город Пикалево\"  аппаратно-программного комплекса автоматизированной информационной системы \"Безопасный город\" в рамках подпрограммы \"Обеспечение правопорядка и профилактика правонарушений\" муниципальной  программы \"Безопасность в МО \"Город Пикалево\"","200","000 0113 П42П105 000 000 ",720000,"-",720000]
["Прочая закупка товаров, работ и услуг для обеспечения государственных (муниципальных) нужд","200","000 0113 П42П105 244 000 ",720000,"-",720000]
["Расходы","200","000 0113 П42П105 244 200 ",500540,"-",500540]
["Оплата работ, услуг","200","000 0113 П42П105 244 220 ",500540,"-",500540]
["Прочие работы, услуги","200","000 0113 П42П105 244 226 ",500540,"-",500540]
["Поступление нефинансовых активов","200","000 0113 П42П105 244 300 ",219460,"-",219460]
["Увеличение стоимости основных средств","200","000 0113 П42П105 244 310 ",219460,"-",219460]
["Подпрограмма \"Развитие муниципальной службы и повышение квалификации кадров органов местного самоуправления МО \"Город Пикалево\" муниципальной  программы \"Развитие муниципального управления и информационного общества в МО \"Город Пикалево\"","200","000 0113 П610000 000 000 ",146500,7800,138700]
["Организация повышения квалификации лиц, замещающих должности муниципальной службы в органах местного самоуправления МО \"Город Пикалево\", и лиц, зачисленных в кадровый резерв администрации МО \"Город Пикалево\" в рамках подпрограммы \"Развитие муниципальной службы и повышение квалификации кадров органов местного самоуправления МО \"Город Пикалево\" муниципальной  программы \"Развитие муниципального управления и информационного общества в МО \"Город Пикалево\"","200","000 0113 П61П112 000 000 ",146500,7800,138700]
["Прочая закупка товаров, работ и услуг для обеспечения государственных (муниципальных) нужд","200","000 0113 П61П112 244 000 ",146500,7800,138700]
["Расходы","200","000 0113 П61П112 244 200 ",146500,7800,138700]
["Оплата работ, услуг","200","000 0113 П61П112 244 220 ",146500,7800,138700]
["Прочие работы, услуги","200","000 0113 П61П112 244 226 ",146500,7800,138700]
["Подпрограмма \"Информирование населения о деятельности органов местного самоуправления МО \"Город Пикалево\" муниципальной  программы \"Развитие муниципального управления и информационного общества в МО \"Город Пикалево\"","200","000 0113 П620000 000 000 ",263092,55016.2,208075.8]
["Организация освещения  в печатных и электронных средствах массовой информации, в сети Интернет деятельности органов местного самоуправления, актуальных вопросов и событий политической, общественной, экономической, культурной, спортивной жизни в рамках подпрограммы \"Информирование населения о деятельности органов местного самоуправления МО \"Город Пикалево\" муниципальной  программы \"Развитие муниципального управления и информационного общества в МО \"Город Пикалево\"","200","000 0113 П62П016 000 000 ",263092,55016.2,208075.8]
["Закупка товаров, работ, услуг в сфере информационно-коммуникационных технологий","200","000 0113 П62П016 242 000 ",263092,55016.2,208075.8]
["Расходы","200","000 0113 П62П016 242 200 ",263092,55016.2,208075.8]
["Оплата работ, услуг","200","000 0113 П62П016 242 220 ",263092,55016.2,208075.8]
["Прочие работы, услуги","200","000 0113 П62П016 242 226 ",263092,55016.2,208075.8]
["НАЦИОНАЛЬНАЯ ОБОРОНА","200","000 0200 0000000 000 000 ",1023626,245957.53,777668.47]
["Мобилизационная и вневойсковая подготовка","200","000 0203 0000000 000 000 ",1023626,245957.53,777668.47]
["Непрограммные расходы органов местного самоуправления по вопросам национальной обороны","200","000 0203 Г220000 000 000 ",1023626,245957.53,777668.47]
["Осуществление первичного воинского учета на территориях, где отсутствуют военные комиссариаты за счет средств субвенции федерального бюджета  в рамках непрограммных расходов органов местного самоуправления по вопросам национальной обороны","200","000 0203 Г225118 000 000 ",1023626,245957.53,777668.47]
["Фонд оплаты труда государственных (муниципальных) органов и взносы по обязательному социальному страхованию","200","000 0203 Г225118 121 000 ",940900,232280.15,708619.85]
["Расходы","200","000 0203 Г225118 121 200 ",940900,232280.15,708619.85]
["Оплата труда и начисления на выплаты по оплате труда","200","000 0203 Г225118 121 210 ",940900,232280.15,708619.85]
["Заработная плата","200","000 0203 Г225118 121 211 ",722658,184433.3,538224.69999999995]
["Начисления на выплаты по оплате труда","200","000 0203 Г225118 121 213 ",218242,47846.85,170395.15]
["Закупка товаров, работ, услуг в сфере информационно-коммуникационных технологий","200","000 0203 Г225118 242 000 ",48771,13677.38,35093.620000000003]
["Расходы","200","000 0203 Г225118 242 200 ",27245,5151.38,22093.62]
["Оплата работ, услуг","200","000 0203 Г225118 242 220 ",27245,5151.38,22093.62]
["Услуги связи","200","000 0203 Г225118 242 221 ",25067,5151.38,19915.62]
["Работы, услуги по содержанию имущества","200","000 0203 Г225118 242 225 ",2178,"-",2178]
["Поступление нефинансовых активов","200","000 0203 Г225118 242 300 ",21526,8526,13000]
["Увеличение стоимости основных средств","200","000 0203 Г225118 242 310 ",8000,"-",8000]
["Увеличение стоимости материальных запасов","200","000 0203 Г225118 242 340 ",13526,8526,5000]
["Прочая закупка товаров, работ и услуг для обеспечения государственных (муниципальных) нужд","200","000 0203 Г225118 244 000 ",33955,"-",33955]
["Расходы","200","000 0203 Г225118 244 200 ",6720,"-",6720]
["Оплата работ, услуг","200","000 0203 Г225118 244 220 ",6720,"-",6720]
["Услуги связи","200","000 0203 Г225118 244 221 ",6000,"-",6000]
["Прочие работы, услуги","200","000 0203 Г225118 244 226 ",720,"-",720]
["Поступление нефинансовых активов","200","000 0203 Г225118 244 300 ",27235,"-",27235]
["Увеличение стоимости материальных запасов","200","000 0203 Г225118 244 340 ",27235,"-",27235]
["НАЦИОНАЛЬНАЯ БЕЗОПАСНОСТЬ И ПРАВООХРАНИТЕЛЬНАЯ ДЕЯТЕЛЬНОСТЬ","200","000 0300 0000000 000 000 ",484890,84727.73,400162.27]
["Защита населения и территории от чрезвычайных ситуаций природного и техногенного характера, гражданская оборона","200","000 0309 0000000 000 000 ",163890,45000,118890]
["Подпрограмма \"Предупреждение чрезвычайных ситуаций, защита населения и территорий от чрезвычайных ситуаций природного и техногенного характера, развитие гражданской обороны, обеспечение пожарной безопасности и безопасности на водных объектах\" муниципальной программы \"Безопасность в МО \"Город Пикалево\"","200","000 0309 П410000 000 000 ",163890,45000,118890]
["Субсидии на обеспечение мероприятий по предупреждению и ликвидации последствий чрезвычайных ситуаций и стихийных бедствий в рамках подпрограммы \"Предупреждение чрезвычайных ситуаций, защита населения и территорий от чрезвычайных ситуаций природного и техногенного характера, развитие гражданской обороны, обеспечение пожарной безопасности и безопасности на водных объектах\" муниципальной  программы \"Безопасность в МО \"Город Пикалево\"","200","000 0309 П41П509 000 000 ",93890,"-",93890]
["Субсидии бюджетным учреждениям на иные цели","200","000 0309 П41П509 612 000 ",93890,"-",{"$f":"IF(OR(D271=\"-\",E271=D271),\"-\",D271-IF(E271=\"-\",0,E271))","v":93890}]
["Расходы","200","000 0309 П41П509 612 200 ",93890,"-",93890]
["Безвозмездные перечисления организациям","200","000 0309 П41П509 612 240 ",93890,"-",93890]
["Безвозмездные перечисления государственным и муниципальным организациям","200","000 0309 П41П509 612 241 ",93890,"-",93890]
["Межбюджетные трансферты бюджетам муниципальных районов из бюджетов поселений на осуществление полномочий в области создания, содержания и организации деятельности аварийно-спасательных служб и (или) аварийно-спасательных формирований  в рамках подпрограммы \"Предупреждение чрезвычайных ситуаций, защита населения и территорий от чрезвычайных ситуаций природного и техногенного характера, развитие гражданской обороны, обеспечение пожарной безопасности и безопасности на водных объектах\" муниципальной  программы \"Безопасность в МО \"Город Пикалево\"","200","000 0309 П41П701 000 000 ",50000,25000,25000]
["Иные межбюджетные трансферты","200","000 0309 П41П701 540 000 ",50000,25000,25000]
["Расходы","200","000 0309 П41П701 540 200 ",50000,25000,25000]
["Безвозмездные перечисления бюджетам","200","000 0309 П41П701 540 250 ",50000,25000,25000]
["Перечисления другим бюджетам бюджетной системы Российской Федерации","200","000 0309 П41П701 540 251 ",50000,25000,25000]
["Межбюджетные трансферты бюджетам муниципальных районов из бюджетов поселений на осуществление полномочий в области гражданской обороны, защиты населения и территории от чрезвычайных ситуаций природного и техногенного характера в части подготовки и обучения населения в области гражданской обороны, способам защиты и действиям в чрезвычайных ситуациях  в рамках подпрограммы \"Предупреждение чрезвычайных ситуаций, защита населения и территорий от чрезвычайных ситуаций природного и техногенного характера, развитие гражданской обороны, обеспечение пожарной безопасности и безопасности на водных объектах\" муниципальной  программы \"Безопасность в МО \"Город Пикалево\"","200","000 0309 П41П702 000 000 ",20000,20000,"-"]
["Иные межбюджетные трансферты","200","000 0309 П41П702 540 000 ",20000,20000,"-"]
["Расходы","200","000 0309 П41П702 540 200 ",20000,20000,"-"]
["Безвозмездные перечисления бюджетам","200","000 0309 П41П702 540 250 ",20000,20000,"-"]
["Перечисления другим бюджетам бюджетной системы Российской Федерации","200","000 0309 П41П702 540 251 ",20000,20000,"-"]
["Обеспечение пожарной безопасности","200","000 0310 0000000 000 000 ",321000,39727.730000000003,281272.27]
["Подпрограмма \"Предупреждение чрезвычайных ситуаций, защита населения и территорий от чрезвычайных ситуаций природного и техногенного характера, развитие гражданской обороны, обеспечение пожарной безопасности и безопасности на водных объектах\" муниципальной программы \"Безопасность в МО \"Город Пикалево\"","200","000 0310 П410000 000 000 ",321000,39727.730000000003,281272.27]
["Обеспечение первичных мер пожарной безопасности  в рамках подпрограммы \"Предупреждение чрезвычайных ситуаций, защита населения и территорий от чрезвычайных ситуаций природного и техногенного характера, развитие гражданской обороны, обеспечение пожарной безопасности и безопасности на водных объектах\" муниципальной  программы \"Безопасность в МО \"Город Пикалево\"","200","000 0310 П41П103 000 000 ",321000,39727.730000000003,281272.27]
["Прочая закупка товаров, работ и услуг для обеспечения государственных (муниципальных) нужд","200","000 0310 П41П103 244 000 ",321000,39727.730000000003,281272.27]
["Расходы","200","000 0310 П41П103 244 200 ",321000,39727.730000000003,281272.27]
["Оплата работ, услуг","200","000 0310 П41П103 244 220 ",321000,39727.730000000003,281272.27]
["Работы, услуги по содержанию имущества","200","000 0310 П41П103 244 225 ",321000,39727.730000000003,281272.27]
["НАЦИОНАЛЬНАЯ ЭКОНОМИКА","200","000 0400 0000000 000 000 ",59278534.979999997,3736047.25,55542487.729999997]
["Транспорт","200","000 0408 0000000 000 000 ",1629100,991000,638100]
["Муниципальная программа \"Развитие транспортного комплекса в МО \"Город Пикалево\"","200","000 0408 П300000 000 000 ",1629100,991000,638100]
["Субсидии юридическим лицам, осуществляющим пассажирские перевозки автомобильным транспортом общего пользования в МО \"Город Пикалево\" в рамках муниципальной программы \"Развитие транспортного комплекса в МО \"Город Пикалево\"","200","000 0408 П30П603 000 000 ",1629100,991000,638100]
["Субсидии юридическим лицам (кроме некоммерческих организаций), индивидуальным предпринимателям, физическим лицам","200","000 0408 П30П603 810 000 ",1629100,991000,638100]
["Расходы","200","000 0408 П30П603 810 200 ",1629100,991000,638100]
["Безвозмездные перечисления организациям","200","000 0408 П30П603 810 240 ",1629100,991000,638100]
["Безвозмездные перечисления организациям, за исключением государственных и муниципальных организаций","200","000 0408 П30П603 810 242 ",1629100,991000,638100]
["Дорожное хозяйство (дорожные фонды)","200","000 0409 0000000 000 000 ",49846524.979999997,2745047.25,47101477.729999997]
["Непрограммные расходы органов местного самоуправления по вопросам национальной экономики","200","000 0409 Г240000 000 000 ",30558674.030000001,"-",30558674.030000001]
["Обеспечение мероприятий по строительству объектов Комплексного инвестиционного плана за счет средств вышестоящих бюджетов в рамках непрограммных расходов органов местного самоуправления по вопросам национальной экономики","200","000 0409 Г240998 000 000 ",30538674.030000001,"-",30538674.030000001]
["Бюджетные инвестиции в объекты капитального строительства государственной (муниципальной) собственности","200","000 0409 Г240998 414 000 ",30538674.030000001,"-",30538674.030000001]
["Расходы","200","000 0409 Г240998 414 200 ",154574.37,"-",154574.37]
["Оплата работ, услуг","200","000 0409 Г240998 414 220 ",154574.37,"-",154574.37]
["Прочие работы, услуги","200","000 0409 Г240998 414 226 ",154574.37,"-",154574.37]
["Поступление нефинансовых активов","200","000 0409 Г240998 414 300 ",30384099.66,"-",30384099.66]
["Увеличение стоимости основных средств","200","000 0409 Г240998 414 310 ",30384099.66,"-",30384099.66]
["Обеспечение мероприятий по строительству объектов Комплексного инвестиционного плана в рамках непрограммных расходов  органов местного самоуправления по вопросам национальной экономики","200","000 0409 Г24Г115 000 000 ",20000,"-",20000]
["Бюджетные инвестиции в объекты капитального строительства государственной (муниципальной) собственности","200","000 0409 Г24Г115 414 000 ",20000,"-",20000]
["Поступление нефинансовых активов","200","000 0409 Г24Г115 414 300 ",20000,"-",20000]
["Увеличение стоимости основных средств","200","000 0409 Г24Г115 414 310 ",20000,"-",20000]
["Муниципальная программа \"Развитие транспортного комплекса в МО \"Город Пикалево\"","200","000 0409 П300000 000 000 ",19287850.949999999,2745047.25,16542803.699999999]
["Капитальный ремонт и ремонт автомобильных дорог общего пользования местного значения в рамках муниципальной программы \"Развитие транспортного комплекса в МО \"Город Пикалево\"","200","000 0409 П307014 000 000 ",2003828.28,"-",2003828.28]
["Прочая закупка товаров, работ и услуг для обеспечения государственных (муниципальных) нужд","200","000 0409 П307014 244 000 ",2003828.28,"-",2003828.28]
["Расходы","200","000 0409 П307014 244 200 ",2003828.28,"-",2003828.28]
["Оплата работ, услуг","200","000 0409 П307014 244 220 ",2003828.28,"-",2003828.28]
["Работы, услуги по содержанию имущества","200","000 0409 П307014 244 225 ",2003828.28,"-",2003828.28]
["Капитальный ремонт и ремонт автомобильных дорог общего пользования местного значения, имеющих приоритетный социально-значимый характер, в рамках муниципальной программы \"Развитие транспортного комплекса в МО \"Город Пикалево\"","200","000 0409 П307420 000 000 ",9473684.6699999999,"-",9473684.6699999999]
["Прочая закупка товаров, работ и услуг для обеспечения государственных (муниципальных) нужд","200","000 0409 П307420 244 000 ",9473684.6699999999,"-",9473684.6699999999]
["Расходы","200","000 0409 П307420 244 200 ",9473684.6699999999,"-",9473684.6699999999]
["Оплата работ, услуг","200","000 0409 П307420 244 220 ",9473684.6699999999,"-",9473684.6699999999]
["Работы, услуги по содержанию имущества","200","000 0409 П307420 244 225 ",9473684.6699999999,"-",9473684.6699999999]
["Мероприятия по содержанию сети автомобильных дорог общего пользования местного значения в рамках муниципальной программы \"Развитие транспортного комплекса в МО \"Город Пикалево\"","200","000 0409 П30П107 000 000 ",7478488,2738397.25,4740090.75]
["Прочая закупка товаров, работ и услуг для обеспечения государственных (муниципальных) нужд","200","000 0409 П30П107 244 000 ",7478488,2738397.25,4740090.75]
["Расходы","200","000 0409 П30П107 244 200 ",7478488,2738397.25,4740090.75]
["Оплата работ, услуг","200","000 0409 П30П107 244 220 ",7478488,2738397.25,4740090.75]
["Работы, услуги по содержанию имущества","200","000 0409 П30П107 244 225 ",7059600,2619440.25,4440159.75]
["Прочие работы, услуги","200","000 0409 П30П107 244 226 ",418888,118957,299931]
["Капитальный ремонт и ремонт автомобильных дорог общего пользования местного значения  в рамках муниципальной программы \"Развитие   транспортного комплекса в МО \"Город Пикалево\"","200","000 0409 П30П108 000 000 ",101650,6650,95000]
["Прочая закупка товаров, работ и услуг для обеспечения государственных (муниципальных) нужд","200","000 0409 П30П108 244 000 ",101650,6650,95000]
["Расходы","200","000 0409 П30П108 244 200 ",101650,6650,95000]
["Оплата работ, услуг","200","000 0409 П30П108 244 220 ",101650,6650,95000]
["Прочие работы, услуги","200","000 0409 П30П108 244 226 ",101650,6650,95000]
["Капитальный ремонт и ремонт дворовых территорий многоквартирных домов и проездов  к дворовым территориям многоквартирных домов в рамках муниципальной программы \"Развитие транспортного комплекса в МО \"Город Пикалево\"","200","000 0409 П30П109 000 000 ",230200,"-",{"$f":"IF(OR(D335=\"-\",E335=D335),\"-\",D335-IF(E335=\"-\",0,E335))","v":230200}]
["Прочая закупка товаров, работ и услуг для обеспечения государственных (муниципальных) нужд","200","000 0409 П30П109 244 000 ",230200,"-",230200]
["Расходы","200","000 0409 П30П109 244 200 ",230200,"-",230200]
["Оплата работ, услуг","200","000 0409 П30П109 244 220 ",230200,"-",230200]
["Работы, услуги по содержанию имущества","200","000 0409 П30П109 244 225 ",230200,"-",230200]
["Другие вопросы в области национальной экономики","200","000 0412 0000000 000 000 ",7802910,"-",7802910]
["Непрограммные расходы органов местного самоуправления по вопросам национальной экономики","200","000 0412 Г240000 000 000 ",5202910,"-",5202910]
["Мероприятия в области строительства, архитектуры и градостроительства в рамках непрограммных расходов органов местного самоуправления по вопросам национальной экономики","200","000 0412 Г24Г110 000 000 ",5000000,"-",5000000]
["Прочая закупка товаров, работ и услуг для обеспечения государственных (муниципальных) нужд","200","000 0412 Г24Г110 244 000 ",5000000,"-",5000000]
["Расходы","200","000 0412 Г24Г110 244 200 ",5000000,"-",5000000]
["Оплата работ, услуг","200","000 0412 Г24Г110 244 220 ",5000000,"-",5000000]
["Прочие работы, услуги","200","000 0412 Г24Г110 244 226 ",5000000,"-",5000000]
["Мероприятия по землеустройству и землепользованию в рамках непрограммных расходов органов местного самоуправления по вопросам национальной экономики","200","000 0412 Г24Г111 000 000 ",202910,"-",202910]
["Прочая закупка товаров, работ и услуг для обеспечения государственных (муниципальных) нужд","200","000 0412 Г24Г111 244 000 ",202910,"-",202910]
["Расходы","200","000 0412 Г24Г111 244 200 ",202910,"-",202910]
["Оплата работ, услуг","200","000 0412 Г24Г111 244 220 ",202910,"-",202910]
["Прочие работы, услуги","200","000 0412 Г24Г111 244 226 ",202910,"-",202910]
["Муниципальная программа \"Развитие малого и среднего предпринимательства на территории монопрофильного муниципального образования \"Город Пикалево\" (моногорода)","200","000 0412 П700000 000 000 ",2600000,"-",2600000]
["Субсидии на софинансирование текущей деятельности бизнес-инкубаторов, на создание которых были предоставлены средства субсидий федерального бюджета, за счет средств областного бюджета в рамках муниципальной программы \"Развитие малого и среднего предпринимательства на территории МО \"Город Пикалево\"","200","000 0412 П707424 000 000 ",2500000,"-",2500000]
["Субсидии некоммерческим организациям (за исключением государственных (муниципальных) учреждений)","200","000 0412 П707424 630 000 ",2500000,"-",2500000]
["Расходы","200","000 0412 П707424 630 200 ",2500000,"-",2500000]
["Безвозмездные перечисления организациям","200","000 0412 П707424 630 240 ",2500000,"-",2500000]
["Безвозмездные перечисления организациям, за исключением государственных и муниципальных организаций","200","000 0412 П707424 630 242 ",2500000,"-",2500000]
["Субсидии на имущественную поддержку предпринимательства в рамках муниципальной программы \"Развитие малого и среднего предпринимательства на территории монопрофильного муниципального образования \"Город Пикалево\" (моногорода)","200","000 0412 П70П502 000 000 ",33000,"-",33000]
["Субсидии некоммерческим организациям (за исключением государственных (муниципальных) учреждений)","200","000 0412 П70П502 630 000 ",33000,"-",33000]
["Расходы","200","000 0412 П70П502 630 200 ",33000,"-",33000]
["Безвозмездные перечисления организациям","200","000 0412 П70П502 630 240 ",33000,"-",33000]
["Безвозмездные перечисления организациям, за исключением государственных и муниципальных организаций","200","000 0412 П70П502 630 242 ",33000,"-",33000]
["Субсидии на информационную, консультационную поддержку субъектов малого и среднего предпринимательства в рамках муниципальной программы \"Развитие малого и среднего предпринимательства на территории монопрофильного муниципального образования \"Город Пикалево\" (моногорода)","200","000 0412 П70П503 000 000 ",67000,"-",67000]
["Субсидии некоммерческим организациям (за исключением государственных (муниципальных) учреждений)","200","000 0412 П70П503 630 000 ",67000,"-",67000]
["Расходы","200","000 0412 П70П503 630 200 ",67000,"-",67000]
["Безвозмездные перечисления организациям","200","000 0412 П70П503 630 240 ",67000,"-",67000]
["Безвозмездные перечисления организациям, за исключением государственных и муниципальных организаций","200","000 0412 П70П503 630 242 ",67000,"-",67000]
["ЖИЛИЩНО-КОММУНАЛЬНОЕ ХОЗЯЙСТВО","200","000 0500 0000000 000 000 ",115583840.66,6951665.5499999998,108632175.11]
["Жилищное хозяйство","200","000 0501 0000000 000 000 ",74557635.340000004,"-",74557635.340000004]
["Непрограммные расходы органов местного самоуправления по вопросам жилищно-коммунального хозяйства","200","000 0501 Г250000 000 000 ",2180000,"-",2180000]
["Мероприятия по капитальному ремонту многоквартирных домов в рамках непрограммных расходов органов местного самоуправления по вопросам жилищного-коммунального хозяйства","200","000 0501 Г25Г122 000 000 ",2180000,"-",2180000]
["Закупка товаров, работ, услуг в целях капитального ремонта государственного (муниципального) имущества","200","000 0501 Г25Г122 243 000 ",2180000,"-",2180000]
["Расходы","200","000 0501 Г25Г122 243 200 ",2180000,"-",2180000]
["Оплата работ, услуг","200","000 0501 Г25Г122 243 220 ",2180000,"-",2180000]
["Работы, услуги по содержанию имущества","200","000 0501 Г25Г122 243 225 ",2180000,"-",2180000]
["Подпрограмма \"Переселение граждан из аварийного и (или) непригодного для проживания жилищного фонда\" муниципальной программы \"Обеспечение качественным жильем граждан в МО \"Город Пикалево\"","200","000 0501 П230000 000 000 ",72377635.340000004,"-",72377635.340000004]
["Обеспечение мероприятий по переселению граждан из аварийного жилищного фонда в рамках подпрограммы \"Переселение граждан из аварийного и (или) непригодного для проживания жилищного фонда\" муниципальной программы \"Обеспечение качественным жильем граждан в МО \"Город Пикалево\"","200","000 0501 П237077 000 000 ",70468370.5,"-",70468370.5]
["Бюджетные инвестиции в объекты капитального строительства государственной (муниципальной) собственности","200","000 0501 П237077 414 000 ",70468370.5,"-",70468370.5]
["Поступление нефинансовых активов","200","000 0501 П237077 414 300 ",70468370.5,"-",70468370.5]
["Увеличение стоимости основных средств","200","000 0501 П237077 414 310 ",70468370.5,"-",70468370.5]
["Обеспечение мероприятий по сносу расселенных аварийных домов в рамках подпрограммы \"Переселение граждан из аварийного и (или) непригодного для проживания жилищного фонда\" муниципальной программы \"Обеспечение качественным жильем граждан в МО \"Город Пикалево\"","200","000 0501 П23П102 000 000 ",1909264.84,"-",1909264.84]
["Прочая закупка товаров, работ и услуг для обеспечения государственных (муниципальных) нужд","200","000 0501 П23П102 244 000 ",1909264.84,"-",1909264.84]
["Расходы","200","000 0501 П23П102 244 200 ",1909264.84,"-",1909264.84]
["Оплата работ, услуг","200","000 0501 П23П102 244 220 ",1909264.84,"-",1909264.84]
["Прочие работы, услуги","200","000 0501 П23П102 244 226 ",1909264.84,"-",1909264.84]
["Коммунальное хозяйство","200","000 0502 0000000 000 000 ",27827403,3095853.33,24731549.670000002]
["Непрограммные расходы органов местного самоуправления по вопросам жилищно-коммунального хозяйства","200","000 0502 Г250000 000 000 ",5877403,3095853.33,2781549.67]
["Субсидии на оплату кредита и процентов по нему перед ОАО \"ЛОКС\" в рамках непрограммных расходов органов местного самоуправления по вопросам жилищного-коммунального хозяйства","200","000 0502 Г25Г605 000 000 ",5877403,3095853.33,2781549.67]
["Субсидии юридическим лицам (кроме некоммерческих организаций), индивидуальным предпринимателям, физическим лицам","200","000 0502 Г25Г605 810 000 ",5877403,3095853.33,2781549.67]
["Расходы","200","000 0502 Г25Г605 810 200 ",5877403,3095853.33,2781549.67]
["Безвозмездные перечисления организациям","200","000 0502 Г25Г605 810 240 ",5877403,3095853.33,2781549.67]
["Безвозмездные перечисления государственным и муниципальным организациям","200","000 0502 Г25Г605 810 241 ",5877403,3095853.33,2781549.67]
["Подпрограмма \"Развитие коммунальной и жилищной инфраструктуры в МО \"Город Пикалево\" муниципальной программы \"Развитие коммунальной, жилищной инфраструктуры и благоустройства, повышение энергоэффективности в МО \"Город Пикалево2","200","000 0502 П510000 000 000 ",21950000,"-",21950000]
["Субсидии на мероприятия по строительству и реконструкции объектов водоснабжения, водоотведения и очистки сточных вод за счет средств областного бюджета в рамках подпрограммы \"Развитие коммунальной и жилищной инфраструктуры в МО \"Город Пикалево\" муниципальной программы \"Развитие коммунальной, жилищной инфраструктуры и благоустройства, повышение энергоэффективности в МО \"Город Пикалево\"","200","000 0502 П517025 000 000 ",20000000,"-",20000000]
["Субсидии на осуществление капитальных вложений в объекты капитального строительства государственной (муниципальной) собственности государственным (муниципальным) унитарным предприятиям","200","000 0502 П517025 466 000 ",20000000,"-",20000000]
["Поступление финансовых активов","200","000 0502 П517025 466 500 ",20000000,"-",20000000]
["Увеличение стоимости акций и иных форм участия в капитале","200","000 0502 П517025 466 530 ",20000000,"-",20000000]
["Мероприятия по разработке схемы водоснабжения и водоотведения по МО \"Город Пикалево\"в рамках подпрограммы \"Развитие коммунальной и жилищной инфраструктуры в МО \"Город Пикалево\" муниципальной программы \"Развитие коммунальной, жилищной инфраструктуры и благоустройства, повышение энергоэффективности в МО \"Город Пикалево\"","200","000 0502 П51П121 000 000 ",700000,"-",700000]
["Прочая закупка товаров, работ и услуг для обеспечения государственных (муниципальных) нужд","200","000 0502 П51П121 244 000 ",700000,"-",{"$f":"IF(OR(D399=\"-\",E399=D399),\"-\",D399-IF(E399=\"-\",0,E399))","v":700000}]
["Расходы","200","000 0502 П51П121 244 200 ",700000,"-",700000]
["Оплата работ, услуг","200","000 0502 П51П121 244 220 ",700000,"-",700000]
["Прочие работы, услуги","200","000 0502 П51П121 244 226 ",700000,"-",700000]
["Субсидии на мероприятия по строительству и реконструкции объектов водоснабжения, водоотведения и очистки сточных вод в рамках подпрограммы \"Развитие коммунальной и жилищной инфраструктуры в МО \"Город Пикалево\" муниципальной  программы \"Развитие коммунальной,  жилищной инфраструктуры и благоустройства, повышение энергоэффективности в МО \"Город Пикалево\"","200","000 0502 П51П608 000 000 ",1250000,"-",1250000]
["Субсидии на осуществление капитальных вложений в объекты капитального строительства государственной (муниципальной) собственности государственным (муниципальным) унитарным предприятиям","200","000 0502 П51П608 466 000 ",1250000,"-",1250000]
["Поступление финансовых активов","200","000 0502 П51П608 466 500 ",1250000,"-",1250000]
["Увеличение стоимости акций и иных форм участия в капитале","200","000 0502 П51П608 466 530 ",1250000,"-",1250000]
["Благоустройство","200","000 0503 0000000 000 000 ",13025002.32,3855812.22,9169190.0999999996]
["Непрограммные расходы органов местного самоуправления по вопросам жилищно-коммунального хозяйства","200","000 0503 Г250000 000 000 ",447761.32,2000,445761.32]
["Прочие мероприятия  по благоустройству территории в рамках непрограммных расходов органов местного самоуправления по вопросам жилищно-коммунального хозяйства","200","000 0503 Г25Г114 000 000 ",447761.32,2000,445761.32]
["Прочая закупка товаров, работ и услуг для обеспечения государственных (муниципальных) нужд","200","000 0503 Г25Г114 244 000 ",447761.32,2000,445761.32]
["Расходы","200","000 0503 Г25Г114 244 200 ",447761.32,2000,445761.32]
["Оплата работ, услуг","200","000 0503 Г25Г114 244 220 ",447761.32,2000,445761.32]
["Прочие работы, услуги","200","000 0503 Г25Г114 244 226 ",447761.32,2000,445761.32]
["Подпрограмма \"Благоустройство территории МО \"Город Пикалево\" муниципальной программы \"Развитие коммунальной, жилищной инфраструктуры и благоустройства, повышение энергоэффективности в МО \"Город Пикалево\"","200","000 0503 П530000 000 000 ",12577241,3853812.22,8723428.7799999993]
["Обеспечение уличного освещения территории в рамках подпрограммы \"Благоустройство территории МО \"Город Пикалево\" муниципальной  программы \"Развитие коммунальной,  жилищной инфраструктуры и благоустройства, повышение энергоэффективности в МО \"Город Пикалево\"","200","000 0503 П53П106 000 000 ",7941361,3333163.62,4608197.38]
["Прочая закупка товаров, работ и услуг для обеспечения государственных (муниципальных) нужд","200","000 0503 П53П106 244 000 ",7941361,3333163.62,4608197.38]
["Расходы","200","000 0503 П53П106 244 200 ",7941361,3333163.62,4608197.38]
["Оплата работ, услуг","200","000 0503 П53П106 244 220 ",7941361,3333163.62,4608197.38]
["Коммунальные услуги","200","000 0503 П53П106 244 223 ",7941361,3333163.62,4608197.38]
["Обеспечение озеленения территории в рамках подпрограммы \"Благоустройство территории МО \"Город Пикалево\" муниципальной  программы \"Развитие коммунальной,  жилищной инфраструктуры и благоустройства, повышение энергоэффективности в МО \"Город Пикалево\"","200","000 0503 П53П110 000 000 ",1382100,"-",1382100]
["Прочая закупка товаров, работ и услуг для обеспечения государственных (муниципальных) нужд","200","000 0503 П53П110 244 000 ",1382100,"-",1382100]
["Расходы","200","000 0503 П53П110 244 200 ",1382100,"-",1382100]
["Оплата работ, услуг","200","000 0503 П53П110 244 220 ",1382100,"-",1382100]
["Работы, услуги по содержанию имущества","200","000 0503 П53П110 244 225 ",1382100,"-",1382100]
["Прочие мероприятия  по благоустройству территории в рамках подпрограммы \"Благоустройство территории МО \"Город Пикалево\"  муниципальной  программы \"Развитие коммунальной,  жилищной инфраструктуры и благоустройства, повышение энергоэффективности в МО \"Город Пикалево\"","200","000 0503 П53П111 000 000 ",1637880,99999,1537881]
["Прочая закупка товаров, работ и услуг для обеспечения государственных (муниципальных) нужд","200","000 0503 П53П111 244 000 ",1637880,99999,1537881]
["Расходы","200","000 0503 П53П111 244 200 ",1637880,99999,1537881]
["Оплата работ, услуг","200","000 0503 П53П111 244 220 ",1637880,99999,1537881]
["Работы, услуги по содержанию имущества","200","000 0503 П53П111 244 225 ",1637880,99999,1537881]
["Субсидии на мероприятия по содержанию и обслуживанию инженерных сетей, находящихся в муниципальной собственности в рамках подпрограммы \"Благоустройство территории МО \"Город Пикалево\" муниципальной  программы \"Развитие коммунальной,  жилищной инфраструктуры и благоустройства, повышение энергоэффективности в МО \"Город Пикалево\"","200","000 0503 П53П607 000 000 ",1615900,420649.6,1195250.3999999999]
["Субсидии юридическим лицам (кроме некоммерческих организаций), индивидуальным предпринимателям, физическим лицам","200","000 0503 П53П607 810 000 ",1615900,420649.6,1195250.3999999999]
["Расходы","200","000 0503 П53П607 810 200 ",1615900,420649.6,1195250.3999999999]
["Безвозмездные перечисления организациям","200","000 0503 П53П607 810 240 ",1615900,420649.6,1195250.3999999999]
["Безвозмездные перечисления государственным и муниципальным организациям","200","000 0503 П53П607 810 241 ",1037740,237183.04,800556.96]
["Безвозмездные перечисления организациям, за исключением государственных и муниципальных организаций","200","000 0503 П53П607 810 242 ",578160,183466.56,394693.44]
["Другие вопросы в области жилищно-коммунального хозяйства","200","000 0505 0000000 000 000 ",173800,"-",173800]
["Подпрограмма \"Энергосбережение и повышение энергетической эффективности МО \"Город Пикалево\" муниципальной программы \"Развитие коммунальной, жилищной инфраструктуры и благоустройства, повышение энергоэффективности в МО \"Город Пикалево\"","200","000 0505 П520000 000 000 ",173800,"-",173800]
["Мероприятия по энергосбережению и повышению энергетической эффективности в рамках подпрограммы \"Энергосбережение и повышение энергетической эффективности МО \"Город Пикалево\"","200","000 0505 П52П119 000 000 ",173800,"-",173800]
["Прочая закупка товаров, работ и услуг для обеспечения государственных (муниципальных) нужд","200","000 0505 П52П119 244 000 ",173800,"-",173800]
["Расходы","200","000 0505 П52П119 244 200 ",173800,"-",173800]
["Оплата работ, услуг","200","000 0505 П52П119 244 220 ",173800,"-",173800]
["Работы, услуги по содержанию имущества","200","000 0505 П52П119 244 225 ",173800,"-",173800]
["ОБРАЗОВАНИЕ","200","000 0700 0000000 000 000 ",138000,"-",138000]
["Молодежная политика и оздоровление детей","200","000 0707 0000000 000 000 ",138000,"-",138000]
["Подпрограмма \"Молодежная политика в МО \"Город Пикалево\" муниципальной программы \"Культура, физическая культура, спорт и молодежная политика в МО \"Город Пикалево\"","200","000 0707 П130000 000 000 ",138000,"-",138000]
["Субсидии на организацию и проведение мероприятий в сфере молодежной политики в рамках подпрограммы \"Молодежная политика в МО \"Город Пикалево\" муниципальной программы \"Культура, физическая культура, спорт и молодежная политика в МО \"Город Пикалево\"","200","000 0707 П13П508 000 000 ",138000,"-",138000]
["Субсидии бюджетным учреждениям на иные цели","200","000 0707 П13П508 612 000 ",138000,"-",138000]
["Расходы","200","000 0707 П13П508 612 200 ",138000,"-",138000]
["Безвозмездные перечисления организациям","200","000 0707 П13П508 612 240 ",138000,"-",138000]
["Безвозмездные перечисления государственным и муниципальным организациям","200","000 0707 П13П508 612 241 ",138000,"-",138000]
["КУЛЬТУРА, КИНЕМАТОГРАФИЯ","200","000 0800 0000000 000 000 ",26327632.16,6986622.9900000002,19341009.170000002]
["Культура","200","000 0801 0000000 000 000 ",26327632.16,6986622.9900000002,19341009.170000002]
["Непрограммные расходы органов местного самоуправления по вопросам культуры","200","000 0801 Г280000 000 000 ",18000,"-",18000]
["Обеспечение мероприятий, связанных с приобретением подарков ветеранам Великой Отечественной войны ко дню празднования 70-летия Победы в рамках непрограммных расходов органов местного самоуправления по вопросам культуры","200","000 0801 Г28Г123 000 000 ",18000,"-",18000]
["Прочая закупка товаров, работ и услуг для обеспечения государственных (муниципальных) нужд","200","000 0801 Г28Г123 244 000 ",18000,"-",18000]
["Расходы","200","000 0801 Г28Г123 244 200 ",18000,"-",18000]
["Прочие расходы","200","000 0801 Г28Г123 244 290 ",18000,"-",18000]
["Подпрограмма \"Культура в МО \"Город Пикалево\" муниципальной программы \"Культура, физическая культура, спорт и молодежная политика в МО \"Город Пикалево\"","200","000 0801 П110000 000 000 ",26309632.16,6986622.9900000002,19323009.170000002]
["Субсидии на капитальный ремонт объектов культуры МО \"Город Пикалево\" за счет средств областного бюджета в рамках подпрограммы \"Культура в МО \"Город Пикалево\" муниципальной программы \"Культура, физическая культура, спорт и молодежная политика в МО \"Город Пикалево\"","200","000 0801 П117035 000 000 ",1570758.58,1570758.58,"-"]
["Субсидии бюджетным учреждениям на иные цели","200","000 0801 П117035 612 000 ",1570758.58,1570758.58,"-"]
["Расходы","200","000 0801 П117035 612 200 ",1570758.58,1570758.58,"-"]
["Безвозмездные перечисления организациям","200","000 0801 П117035 612 240 ",1570758.58,1570758.58,"-"]
["Безвозмездные перечисления государственным и муниципальным организациям","200","000 0801 П117035 612 241 ",1570758.58,1570758.58,{"$f":"IF(OR(D463=\"-\",E463=D463),\"-\",D463-IF(E463=\"-\",0,E463))","v":"-"}]
["Субсидии на поддержку муниципальных образований Ленинградской области по развитию общественной инфрструктуры муниципального значения Ленинградской области, за счет средств бюджета Бокстогорского муниципального района в рамках подпрограммы \"Культура в МО \"Город Пикалево\"","200","000 0801 П117202 000 000 ",50000,"-",50000]
["Субсидии бюджетным учреждениям на иные цели","200","000 0801 П117202 612 000 ",50000,"-",50000]
["Расходы","200","000 0801 П117202 612 200 ",50000,"-",50000]
["Безвозмездные перечисления организациям","200","000 0801 П117202 612 240 ",50000,"-",50000]
["Безвозмездные перечисления государственным и муниципальным организациям","200","000 0801 П117202 612 241 ",50000,"-",50000]
["Проведение мероприятий по сохранению исторического и культурного наследия Бокситогорского муниципального района за счет средств бюджета Бокситогорского муниципального района в рамках подпрограммы \"Культура в МО \"Город Пикалево\"\" муниципальной программы \"Культура, физическая культура, спорт и молодежная политика в МО \"Город Пикалево\"","200","000 0801 П11Б117 000 000 ",150000,"-",150000]
["Прочая закупка товаров, работ и услуг для обеспечения государственных (муниципальных) нужд","200","000 0801 П11Б117 244 000 ",150000,"-",150000]
["Расходы","200","000 0801 П11Б117 244 200 ",150000,"-",150000]
["Оплата работ, услуг","200","000 0801 П11Б117 244 220 ",150000,"-",150000]
["Работы, услуги по содержанию имущества","200","000 0801 П11Б117 244 225 ",150000,"-",150000]
["Субсидии  на обеспечение исполнения расходных обязательств муниципальных образований в соответствии с планами мероприятий (\"дорожными картами\") по реализации указов Президента РФ от 7 мая 2012 года за счет средств бюджета Бокситогорского муниципального района в рамках подпрограммы \"Культура в МО \"Город Пикалево\" муниципальной программы \"Культура, физическая культура, спорт и молодежная политика в МО \"Город Пикалево\"","200","000 0801 П11Б745 000 000 ",3014400,"-",3014400]
["Субсидии бюджетным учреждениям на иные цели","200","000 0801 П11Б745 612 000 ",3014400,"-",3014400]
["Расходы","200","000 0801 П11Б745 612 200 ",3014400,"-",3014400]
["Безвозмездные перечисления организациям","200","000 0801 П11Б745 612 240 ",3014400,"-",3014400]
["Безвозмездные перечисления государственным и муниципальным организациям","200","000 0801 П11Б745 612 241 ",3014400,"-",3014400]
["Предоставление муниципальным бюджетным учреждениям субсидий  в рамках подпрограммы \"Культура в МО \"Город Пикалево\" муниципальной программы \"Культура, физическая культура, спорт и молодежная политика в МО \"Город Пикалево\"","200","000 0801 П11П017 000 000 ",18329715,4740145.43,13589569.57]
["Субсидии бюджетным учреждениям на финансовое обеспечение государственного (муниципального) задания на оказание государственных (муниципальных) услуг (выполнение работ)","200","000 0801 П11П017 611 000 ",18329715,4740145.43,13589569.57]
["Расходы","200","000 0801 П11П017 611 200 ",18329715,4740145.43,13589569.57]
["Безвозмездные перечисления организациям","200","000 0801 П11П017 611 240 ",18329715,4740145.43,13589569.57]
["Безвозмездные перечисления государственным и муниципальным организациям","200","000 0801 П11П017 611 241 ",18329715,4740145.43,13589569.57]
["Субсидии на организацию и проведение мероприятий в сфере культуры в рамках подпрограммы \"Культура в МО \"Город Пикалево\" муниципальной программы \"Культура, физическая культура, спорт и молодежная политика в МО \"Город Пикалево\"","200","000 0801 П11П504 000 000 ",73000,17500,55500]
["Субсидии бюджетным учреждениям на иные цели","200","000 0801 П11П504 612 000 ",73000,17500,55500]
["Расходы","200","000 0801 П11П504 612 200 ",73000,17500,55500]
["Безвозмездные перечисления организациям","200","000 0801 П11П504 612 240 ",73000,17500,55500]
["Безвозмездные перечисления государственным и муниципальным организациям","200","000 0801 П11П504 612 241 ",73000,17500,55500]
["Субсидии на капитальный ремонт объектов культуры МО \"Город Пикалево\" в рамках подпрограммы \"Культура в МО \"Город Пикалево\" муниципальной программы \"Культура, физическая культура, спорт и молодежная политика в МО \"Город Пикалево\"","200","000 0801 П11П505 000 000 ",3085358.58,621818.98,2463539.6]
["Субсидии бюджетным учреждениям на иные цели","200","000 0801 П11П505 612 000 ",3085358.58,621818.98,2463539.6]
["Расходы","200","000 0801 П11П505 612 200 ",3085358.58,621818.98,2463539.6]
["Безвозмездные перечисления организациям","200","000 0801 П11П505 612 240 ",3085358.58,621818.98,2463539.6]
["Безвозмездные перечисления государственным и муниципальным организациям","200","000 0801 П11П505 612 241 ",3085358.58,621818.98,2463539.6]
["Субсидии на оплату услуг по предоставлению сцены для проведения мероприятия «Масленица» в рамках подпрограммы\"Культура в МО \"Город Пикалево\" муниципальной программы \"Культура, физическая культура, спорт и молодежная политика в МО \"Город Пикалево\"","200","000 0801 П11П517 000 000 ",36400,36400,"-"]
["Субсидии бюджетным учреждениям на иные цели","200","000 0801 П11П517 612 000 ",36400,36400,"-"]
["Расходы","200","000 0801 П11П517 612 200 ",36400,36400,"-"]
["Безвозмездные перечисления организациям","200","000 0801 П11П517 612 240 ",36400,36400,"-"]
["Безвозмездные перечисления государственным и муниципальным организациям","200","000 0801 П11П517 612 241 ",36400,36400,"-"]
["СОЦИАЛЬНАЯ ПОЛИТИКА","200","000 1000 0000000 000 000 ",5004939.3,1670636,3334303.3]
["Пенсионное обеспечение","200","000 1001 0000000 000 000 ",2932900,418050,2514850]
["Непрограммные расходы органов местного самоуправления по вопросам социальной политики","200","000 1001 Г2П0000 000 000 ",2932900,418050,2514850]
["Доплаты к пенсиям муниципальных служащих в рамках непрограммных расходов органов местного самоуправления по вопросам социальной политики","200","000 1001 Г2ПГ112 000 000 ",2932900,418050,2514850]
["Пособия, компенсации и иные социальные выплаты гражданам, кроме публичных нормативных обязательств","200","000 1001 Г2ПГ112 321 000 ",2932900,418050,2514850]
["Расходы","200","000 1001 Г2ПГ112 321 200 ",2932900,418050,2514850]
["Социальное обеспечение","200","000 1001 Г2ПГ112 321 260 ",2932900,418050,2514850]
["Пенсии, пособия, выплачиваемые организациями сектора государственного управления","200","000 1001 Г2ПГ112 321 263 ",2932900,418050,2514850]
["Социальное обеспечение населения","200","000 1003 0000000 000 000 ",1917039.3,1252586,664453.30000000005]
["Непрограммные расходы органов местного самоуправления по вопросам социальной политики","200","000 1003 Г2П0000 000 000 ",73000,13500,59500]
["Оказание других видов социальной помощи в рамках непрограммных расходов органов местного самоуправления по вопросам социальной политики","200","000 1003 Г2ПГ300 000 000 ",73000,13500,59500]
["Пособия, компенсации, меры социальной поддержки по публичным нормативным обязательствам","200","000 1003 Г2ПГ300 313 000 ",73000,13500,59500]
["Расходы","200","000 1003 Г2ПГ300 313 200 ",73000,13500,59500]
["Социальное обеспечение","200","000 1003 Г2ПГ300 313 260 ",73000,13500,59500]
["Пособия по социальной помощи населению","200","000 1003 Г2ПГ300 313 262 ",73000,13500,59500]
["Подпрограмма \"Физическая культура и спорт в МО \"Город Пикалево\" муниципальной программы \"Культура, физическая культура, спорт и молодежная политика в МО \"Город Пикалево\"","200","000 1003 П120000 000 000 ",155000,11000,144000]
["Субсидии на организацию мероприятий по приспособлению для доступа инвалидов здания плавательного бассейна города Пикалево в рамках подпрограммы \"Физическая культура и спорт в МО \"Город Пикалево\" муниципальной программы \"Культура, физическая культура, спорт и молодежная политика в МО \"Город Пикалево\"","200","000 1003 П12П507 000 000 ",155000,11000,144000]
["Субсидии бюджетным учреждениям на иные цели","200","000 1003 П12П507 612 000 ",155000,11000,144000]
["Расходы","200","000 1003 П12П507 612 200 ",155000,11000,144000]
["Безвозмездные перечисления организациям","200","000 1003 П12П507 612 240 ",155000,11000,144000]
["Безвозмездные перечисления государственным и муниципальным организациям","200","000 1003 П12П507 612 241 ",155000,11000,144000]
["Подпрограмма \" Жилье для молодежи\" муниципальной программы \"Обеспечение качественным жильем граждан в МО \"Город Пикалево\"","200","000 1003 П210000 000 000 ",1441598.4,1228086,213512.39999999991]
["Субсидии на жилье для молодежи за счет средств областного бюджета в рамках подпрограммы \"Жилье для молодежи\" муниципальной программы \"Обеспечение качественным жильем граждан в МО \"Город Пикалево\"","200","000 1003 П217075 000 000 ",1140366,1140366,"-"]
["Субсидии гражданам на приобретение жилья","200","000 1003 П217075 322 000 ",1140366,1140366,"-"]
["Расходы","200","000 1003 П217075 322 200 ",1140366,1140366,"-"]
["Социальное обеспечение","200","000 1003 П217075 322 260 ",1140366,1140366,"-"]
["Пособия по социальной помощи населению","200","000 1003 П217075 322 262 ",1140366,1140366,"-"]
["Субсидии на жилье для молодежи в рамках подпрограммы \"Жилье для молодежи\" муниципальной программы \"Обеспечение качественным жильем граждан в МО \"Город Пикалево\"","200","000 1003 П21П601 000 000 ",301232.40000000002,87720,213512.40000000002]
["Субсидии гражданам на приобретение жилья","200","000 1003 П21П601 322 000 ",301232.40000000002,87720,{"$f":"IF(OR(D527=\"-\",E527=D527),\"-\",D527-IF(E527=\"-\",0,E527))","v":213512.40000000002}]
["Расходы","200","000 1003 П21П601 322 200 ",301232.40000000002,87720,213512.40000000002]
["Социальное обеспечение","200","000 1003 П21П601 322 260 ",301232.40000000002,87720,213512.40000000002]
["Пособия по социальной помощи населению","200","000 1003 П21П601 322 262 ",301232.40000000002,87720,213512.40000000002]
["Подпрограмма \" Обеспечение жильем молодых семей\" муниципальной программы \"Обеспечение качественным жильем граждан в МО \"Город Пикалево\"","200","000 1003 П220000 000 000 ",247440.9,"-",247440.9]
["Субсидии на обеспечение жильем молодых семей в рамках подпрограммы \"Обеспечение жильем молодых семей\" муниципальной программы \"Обеспечение качественным жильем граждан в МО \"Город Пикалево\"","200","000 1003 П22П602 000 000 ",247440.9,"-",247440.9]
["Субсидии гражданам на приобретение жилья","200","000 1003 П22П602 322 000 ",247440.9,"-",247440.9]
["Расходы","200","000 1003 П22П602 322 200 ",247440.9,"-",247440.9]
["Социальное обеспечение","200","000 1003 П22П602 322 260 ",247440.9,"-",247440.9]
["Пособия по социальной помощи населению","200","000 1003 П22П602 322 262 ",247440.9,"-",247440.9]
["Другие вопросы в области социальной политики","200","000 1006 0000000 000 000 ",155000,"-",155000]
["Подпрограмма \"Физическая культура и спорт в МО \"Город Пикалево\" муниципальной программы \"Культура, физическая культура, спорт и молодежная политика в МО \"Город Пикалево\"","200","000 1006 П120000 000 000 ",155000,"-",155000]
["Субсидии на организацию мероприятий по приспособлению для доступа инвалидов здания плавательного бассейна г. Пикалево за счет средств областного бюджета в рамках подпрограммы \"Физическая культура и спорт в МО \"Город Пикалево\" муниципальной программы \"Культура, физическая культура, спорт и молодежная политика в МО \"Город Пикалево\"","200","000 1006 П127093 000 000 ",155000,"-",155000]
["Субсидии бюджетным учреждениям на иные цели","200","000 1006 П127093 612 000 ",155000,"-",155000]
["Расходы","200","000 1006 П127093 612 200 ",155000,"-",155000]
["Безвозмездные перечисления организациям","200","000 1006 П127093 612 240 ",155000,"-",155000]
["Безвозмездные перечисления государственным и муниципальным организациям","200","000 1006 П127093 612 241 ",155000,"-",155000]
["ФИЗИЧЕСКАЯ КУЛЬТУРА И СПОРТ","200","000 1100 0000000 000 000 ",27731735,7526318,20205417]
["Физическая культура","200","000 1101 0000000 000 000 ",27731735,7526318,20205417]
["Подпрограмма \"Физическая культура и спорт в МО \"Город Пикалево\" муниципальной программы \"Культура, физическая культура, спорт и молодежная политика в МО \"Город Пикалево\"","200","000 1101 П120000 000 000 ",27731735,7526318,20205417]
["Субсидии на поддержку муниципальных образований Ленинградской области по развитию общественной инфраструктуры муниципального значения Ленинградской области, за счет средств бюджета Бокситогорского муниципального района в рамках подпрограммы \"Физическая культура и спорт в МО \"Город Пикалево\" муниципальной программы \"Культура, физическая культура, спорт и молодежная политика в МО \"Город Пикалево\"","200","000 1101 П127202 000 000 ",100000,"-",100000]
["Субсидии бюджетным учреждениям на иные цели","200","000 1101 П127202 612 000 ",100000,"-",100000]
["Расходы","200","000 1101 П127202 612 200 ",100000,"-",100000]
["Безвозмездные перечисления организациям","200","000 1101 П127202 612 240 ",100000,"-",100000]
["Безвозмездные перечисления государственным и муниципальным организациям","200","000 1101 П127202 612 241 ",100000,"-",100000]
["Предоставление муниципальным бюджетным учреждениям субсидий  в рамках подпрограммы \"Физическая культура и спорт в МО \"Город Пикалево\" муниципальной программы \"Культура, физическая культура, спорт и молодежная политика в МО \"Город Пикалево\"","200","000 1101 П12П017 000 000 ",25551638,7087000,18464638]
["Субсидии бюджетным учреждениям на финансовое обеспечение государственного (муниципального) задания на оказание государственных (муниципальных) услуг (выполнение работ)","200","000 1101 П12П017 611 000 ",25551638,7087000,18464638]
["Расходы","200","000 1101 П12П017 611 200 ",25551638,7087000,18464638]
["Безвозмездные перечисления организациям","200","000 1101 П12П017 611 240 ",25551638,7087000,18464638]
["Безвозмездные перечисления государственным и муниципальным организациям","200","000 1101 П12П017 611 241 ",25551638,7087000,18464638]
["Субсидии на организацию и проведение мероприятий в сфере физической культуры и спорта в рамках подпрограммы \"Физическая культура и спорт в МО \"Город Пикалево\" муниципальной программы \"Культура, физическая культура, спорт и молодежная политика в МО \"Город Пикалево\"","200","000 1101 П12П506 000 000 ",58000,26149,31851]
["Субсидии бюджетным учреждениям на иные цели","200","000 1101 П12П506 612 000 ",58000,26149,31851]
["Расходы","200","000 1101 П12П506 612 200 ",58000,26149,31851]
["Безвозмездные перечисления организациям","200","000 1101 П12П506 612 240 ",58000,26149,31851]
["Безвозмездные перечисления государственным и муниципальным организациям","200","000 1101 П12П506 612 241 ",58000,26149,31851]
["Субсидии на обеспечение выплат стимулирующего характера работникам муниципальных учреждений физической культуры и спорта МО \"Город Пикалево\" в рамках подпрограммы \"Физическая культура и спорт в МО \"Город Пикалево\" муниципальной программы \"Культура, физическая культура, спорт и молодежная политика в МО \"Город Пикалево\"","200","000 1101 П12П514 000 000 ",2022097,413169,1608928]
["Субсидии бюджетным учреждениям на иные цели","200","000 1101 П12П514 612 000 ",2022097,413169,1608928]
["Расходы","200","000 1101 П12П514 612 200 ",2022097,413169,1608928]
["Безвозмездные перечисления организациям","200","000 1101 П12П514 612 240 ",2022097,413169,1608928]
["Безвозмездные перечисления государственным и муниципальным организациям","200","000 1101 П12П514 612 241 ",2022097,413169,1608928]
["СРЕДСТВА МАССОВОЙ ИНФОРМАЦИИ","200","000 1200 0000000 000 000 ",676700,169175,507525]
["Периодическая печать и издательства","200","000 1202 0000000 000 000 ",676700,169175,507525]
["Подпрограмма \"Информирование населения о деятельности органов местного самоуправления МО \"Город Пикалево\" муниципальной  программы \"Развитие муниципального управления и информационного общества в МО \"Город Пикалево\"","200","000 1202 П620000 000 000 ",676700,169175,507525]
["Субсидии на организацию опубликования муниципальных правовых актов и их проектов о деятельности органов местного самоуправления МО \"Город Пикалево\", а также иной социально-значимой информации через официальные СМИ в рамках подпрограммы \"Информирование населения о деятельности органов местного самоуправления МО \"Город Пикалево\" муниципальной  программы \"Развитие муниципального управления и информационного общества в МО \"Город Пикалево\"","200","000 1202 П62П501 000 000 ",676700,169175,507525]
["Субсидии некоммерческим организациям (за исключением государственных (муниципальных) учреждений)","200","000 1202 П62П501 630 000 ",676700,169175,507525]
["Расходы","200","000 1202 П62П501 630 200 ",676700,169175,507525]
["Безвозмездные перечисления организациям","200","000 1202 П62П501 630 240 ",676700,169175,507525]
["Безвозмездные перечисления организациям, за исключением государственных и муниципальных организаций","200","000 1202 П62П501 630 242 ",676700,169175,507525]
["ОБСЛУЖИВАНИЕ ГОСУДАРСТВЕННОГО И МУНИЦИПАЛЬНОГО ДОЛГА","200","000 1300 0000000 000 000 ",809112,53014.29,756097.71]
["Обслуживание государственного внутреннего и муниципального долга","200","000 1301 0000000 000 000 ",809112,53014.29,756097.71]
["Непрограммные расходы органов местного самоуправления по вопросам обслуживания муниципального долга","200","000 1301 Г2Д0000 000 000 ",809112,53014.29,756097.71]
["Процентные платежи по муниципальному долгу в рамках непрограммных расходов органов местного самоуправления по вопросам обслуживания муниципального долга","200","000 1301 Г2ДГ113 000 000 ",809112,53014.29,756097.71]
["Обслуживание муниципального долга","200","000 1301 Г2ДГ113 730 000 ",809112,53014.29,756097.71]
["Расходы","200","000 1301 Г2ДГ113 730 200 ",809112,53014.29,756097.71]
["Обслуживание государственного (муниципального) долга","200","000 1301 Г2ДГ113 730 230 ",809112,53014.29,756097.71]
["Обслуживание внутреннего долга","200","000 1301 Г2ДГ113 730 231 ",809112,53014.29,756097.71]
[]
["Результат исполнения бюджета (дефицит / профицит)","450","x",-61083451.369999997,11785505.42,"x                    "]

{"sheet":"ExportParams","index":2,"n_rows":4,"n_cols":2,"rows_kept":4,"cut":false,"hidden":true,"merged":[]}
["EXPORT_SRC_KIND","ПосОБР"]
["EXPORT_PARAM_SRC_KIND","3"]
["EXPORT_SRC_CODE","45012"]
["EXPORT_VB_CODE","3"]

{"sheet":"Источники","index":3,"n_rows":48,"n_cols":6,"rows_kept":48,"cut":false,"hidden":false,"merged":[[0,0,0,5]]}
["                                                                                                                                                                             Форма 0503117  с.3"]
["                                 3. Источники финансирования дефицита бюджета"]
[]
[" Наименование показателя","Код строки","Код источника финансирования дефицита бюджета по бюджетной классификации","Утвержденные бюджетные назначения","Исполнено","Неисполненные назначения"]
[]
[1,2,3,"4","5","6"]
["Источники финансирования дефицита бюджета - всего","500","*** 90000000000000 000",61083451.369999997,-11785505.42,{"$f":"SUM(D7-E7)","v":72868956.789999992}]
["в том числе:"]
["источники внутреннего финансирования бюджета","520","*** 01000000000000 000",10804014,760000,{"$f":"SUM(D9-E9)","v":10044014}]
["из них:"]
["Кредиты кредитных организаций в валюте Российской Федерации","520","000 01020000000000 000",6224700,"-",6224700]
["Получение кредитов от кредитных организаций в валюте Российской Федерации","520","000 01020000000000 700",10000000,"-",10000000]
["Получение кредитов от кредитных организаций бюджетами поселений в валюте Российской Федерации","520","000 01020000130000 710",10000000,"-",10000000]
["Погашение кредитов, предоставленных кредитными  организациями в валюте Российской Федерации","520","000 01020000000000 800",-3775300,"-",-3775300]
["Погашение бюджетами поселений кредитов от кредитных организаций в валюте Российской Федерации","520","000 01020000130000 810",-3775300,"-",-3775300]
["Бюджетные кредиты от других бюджетов бюджетной системы Российской Федерации","520","000 01030000000000 000",-3534286,"-",-3534286]
["Бюджетные кредиты от других бюджетов бюджетной системы Российской Федерации в валюте Российской Федерации","520","000 01030100000000 000",-3534286,"-",-3534286]
["Погашение бюджетых кредитов, полученных от других бюджетов бюджетной системы Российской Федерации в валюте Российской Федерации","520","000 01030100000000 800",-3534286,"-",-3534286]
["Погашение бюджетами поселений кредитов от других бюджетов бюджетной системы Российской Федерации в валюте Российской Федерации","520","000 01030100130000 810",-3534286,"-",-3534286]
["Иные источники внутреннего финансирования дефицита бюджета","520","000 01060000000000 000",8113600,760000,{"$f":"SUM(D20)-E20","v":7353600}]
["Акции и иные формы участия в капитале, находящихся в государственной и муниципальной собственности","520","000 01060100000000 000",5713600,"-",5713600]
["Средства от продажи акций и иных форм участия в капитале, находящихся в государственной и муниципальной собственности","520","000 01060100000000 630",5713600,"-",5713600]
["Средства от продажи акций и иных форм участия в капитале, находящихся в собственности поселений","520","000 01060100130000 630",5713600,"-",5713600]
["Исполнение государственных и муниципальных гарантий ","520","000 01060400000000 000",-7779403,"-",-7779403]
["Исполнение государственных и муниципальных гарантий в валюте Российской Федерации","520","000 01060401000000 000",-7779403,"-",-7779403]
["Исполнение государственных и муниципальных гарантий в валюте Российской Федерации в случае, если исполнение гарантом муниципальных гарантий ведет к возникновению права регрессного требования гаранта к принципалу либо обусловлено уступкой гаранту прав требования бенефициара к принципалу","520","000 01060401000000 800",-7779403,"-",-7779403]
["Исполнение муниципальных гарантий поселений в валюте Российской Федерации в случае, если исполнение гарантом муниципальных гарантий ведет к возникновению права регрессного требования гаранта к принципалу либо обусловлено уступкой гаранту прав требования бенефициара к принципалу","520","000 01060401130000 810",-7779403,"-",-7779403]
["Прочие бюджетные кредиты (ссуды), предоставленные внутри страны","520","000 01060800000000 000",10179403,760000,{"$f":"SUM(D28)-E28","v":9419403}]
["Возврат прочих бюджетных кредитов (ссуд), предоставленные внутри страны","520","000 01060800000000 600",10179403,760000,{"$f":"SUM(D29)-E29","v":9419403}]
["Возврат прочих бюджетных кредитов (ссуд), предоставленных бюджетами поселений внутри страны","520","000 01060800130000 640",10179403,545000,{"$f":"SUM(D30)-E30","v":9634403}]
["Изменение остатков средств","700","*** 01000000000000 000",50279437.369999997,-12545505.42,{"$f":"SUM(D31-E31)","v":62824942.789999999}]
["Изменение остатков средств на счетах по учету средств бюджета","700","*** 01050000000000 000",50279437.369999997,-12545505.42,{"$f":"SUM(D32-E32)","v":62824942.789999999}]
["увеличение остатков средств бюджетов","710","000 01050000000000 500",-248294003.69999999,-103305482.98,"x                    "]
["увеличение прочих остатков средств бюджетов","710","000 01050200000000 500",-248294003.69999999,-103305482.98,"x                    "]
["увеличение прочих остатков денежных средств бюджетов","710","000 01050201000000 510",-248294003.69999999,-103305482.98,"x                    "]
["Увеличение прочих остатков денежных средств бюджетов поселений","710","000 01050201130000 510",-248294003.69999999,-103305482.98,"x                    "]
["уменьшение остатков средств бюджетов","720","000 01050000000000 600",298573441.06999999,90759977.560000002,"x                    "]
["уменьшение прочих остатков средств бюджетов","720","000 01050200000000 600",298573441.06999999,90759977.560000002,"x                    "]
["уменьшение прочих остатков денежных средств бюджетов","720","000 01050201000000 610",298573441.06999999,90759977.560000002,"x                    "]
["Уменьшение прочих остатков денежных средств бюджетов поселений","720","000 01050201130000 610",298573441.06999999,90759977.560000002,"x                    "]
[]
[]
["Глава администрации",null,null,"Д.В. Николаев"]
[]
[]
["Заведующий отделом финансов",null,null,"И.Ю. Жолудева"]
[]
["06 мая  2015 года"]